Workbook

Sheet Sheet1
E2: =TEXT(H2,"dddd") -> Wednesday | H2: =TODAY() -> 2020-03-11
B4: الـخـزيـنـه | C4: % | D4: الاذون | E4: اجمالى المـبـيـعـات | F4: أجـــل | G4: نـقداً | H4: تــحصــيــل | I4: تحت التسويه | J4: المدفوعات | K4: خزينه | L4: الرصيد
B5: محمد | C5: =IFERROR(E5/$E$8," ") -> 0 | D5: =[1]الخزنية2!$E$42 -> 0 | E5: =[1]الخزنية2!$E$43 -> 0 | F5: =[1]الخزنية2!$E$46 -> 0 | G5: =E5-F5 -> 0 | H5: =[1]الخزنية2!$E$44 -> 0 | I5: =[1]الخزنية2!$E$45 -> 0 | J5: =[1]الخزنية2!$E$47 -> 0 | K5: =[1]الخزنية2!$E$48 -> 0 | L5: =[1]الخزنية2!$E$49 -> 0
B6: حسن | C6: =IFERROR(E6/$E$8," ") -> 0.8845550613 | D6: =[2]الخزنية2!$E$42 -> 18 | E6: =[2]الخزنية2!$E$43 -> 34403 | F6: =[2]الخزنية2!$E$46 -> 0 | G6: =E6-F6 -> 34403 | H6: =[2]الخزنية2!$E$44 -> 4830 | I6: =[2]الخزنية2!$E$45 -> 15095 | J6: =[2]الخزنية2!$E$47 -> 220 | K6: =[2]الخزنية2!$E$48 -> 0 | L6: =[2]الخزنية2!$E$49 -> 23918 | M6: =IF(G6>100000,"امير مكافاه 100 ج"," ") -> 
B7: صالح | C7: 0.1154449387 | D7: =[3]الخزنية2!$E$42 -> 7 | E7: =[3]الخزنية2!$E$43 -> 4490 | F7: =[3]الخزنية2!$E$46 -> 0 | G7: =E7-F7 -> 4490 | H7: =[3]الخزنية2!$E$44 -> 0 | I7: =[3]الخزنية2!$E$45 -> 0 | J7: =[3]الخزنية2!$E$47 -> 0 | K7: =[3]الخزنية2!$E$48 -> 0 | L7: =[3]الخزنية2!$E$49 -> 4490 | M7: =IF(G7>100000,"اسلام مكافاه 100 ج"," ") -> 
B8: الاجـمـالـى | D8: =SUM(D5:D7) -> 25 | E8: 38893 | F8: =SUM(F5:F7) -> 0 | G8: =SUM(G6:G7) -> 38893 | H8: 4830 | I8: 15095 | J8: =SUM(J5:J7) -> 220 | K8: =SUM(K5:K7) -> 0 | L8: 28408
L9: =I8+L8 -> 43503
I10: 15:31:15

Sheet Sheet3
B7: مـديـن | C7: دائـن | D7: رصـيد | E7: بـيـان | F7: Column1
B8: =Sheet1!E8 -> 38893 | D8: =B8 -> 38893 | E8: =Table9[[#This Row],[Column1]] -> اجمالى مبيعات | F8: اجمالى مبيعات
B9: =Sheet1!H8 -> 4830 | D9: =D8+B9 -> 43723 | E9: =Table9[[#This Row],[Column1]] -> تــحـصـيـل | F9: تــحـصـيـل
C10: =Sheet1!I8 -> 15095 | D10: =D9-C10 -> 28628 | E10: =Table9[[#This Row],[Column1]] -> تحت التسويه | F10: تحت التسويه
C11: =Sheet1!F8 -> 0 | D11: =D10-C11 -> 28628 | E11: =Table9[[#This Row],[Column1]] -> أجـــل | F11: أجـــل
C12: =Sheet1!J8 -> 220 | D12: =D11-C12 -> 28408 | E12: =Table9[[#This Row],[Column1]] -> المدفوعات | F12: المدفوعات
C13: =Sheet1!K8 -> 0 | D13: =D12-C13 -> 28408 | E13: =Table9[[#This Row],[Column1]] -> خزينه | F13: خزينه
B14: =SUM(B8:B13) -> 43723 | C14: =SUM(C8:C13) -> 15315 | D14: =B14-C14 -> 28408 | E14: =IF(D14=(B8+B9-(C10+C11+C12+C13)),"مطابق","غير مطابق") -> مطابق | F14: =IF(E14=(C8+C9-(D10+D11+D12+D13)),"مطابق","غير مطابق") -> غير مطابق

Sheet Sheet4
C2: الحاله | E2: =Table1[[#Headers],[البائع]] -> البائع | G2: =IF(E3<>0,"المبيعات "," ") -> 
C3: تحت التسويه | G3: =IF(SUMIF(H7:H218,E3,A7:A218)>0,SUMIF(H7:H218,E3,A7:A218)," ") -> 
A5: =SUM(A7:A218) -> 43723 | B5: =SUM(B7:B218) -> 220
A6: مـديـن | B6: دائـن | C6: الــبـيـان | D6: الــوقــت | E6: اسـم الـسـائـق | F6: الحاله أ | G6: الحاله | H6: البائع
A7: =[1]الخزنية!A6 -> 0 | B7: =[1]الخزنية!B6 -> 0 | C7: =[1]الخزنية!C6 -> 0 | D7: =[1]الخزنية!D6 -> 09:45:07 | E7: =[1]الخزنية!E6 -> 0 | F7: =[1]الخزنية!F6 -> 0 | G7: =IF(AND(Table1[[#This Row],[مـديـن]]>0,Table1[[#This Row],[الحاله أ]]=0),"نقداً",Table1[[#This Row],[الحاله أ]]) -> 0 | H7: =Sheet1!$B$5 -> محمد
A8: =[1]الخزنية!A7 -> 0 | B8: =[1]الخزنية!B7 -> 0 | C8: =[1]الخزنية!C7 -> 0 | D8: =[1]الخزنية!D7 -> 00:00:00 | E8: =[1]الخزنية!E7 -> 0 | F8: =[1]الخزنية!F7 -> 0 | G8: =IF(AND(Table1[[#This Row],[مـديـن]]>0,Table1[[#This Row],[الحاله أ]]=0),"نقداً",Table1[[#This Row],[الحاله أ]]) -> 0 | H8: =Sheet1!$B$5 -> محمد
A9: =[1]الخزنية!A8 -> 0 | B9: =[1]الخزنية!B8 -> 0 | C9: =[1]الخزنية!C8 -> 0 | D9: =[1]الخزنية!D8 -> 00:00:00 | E9: =[1]الخزنية!E8 -> 0 | F9: =[1]الخزنية!F8 -> 0 | G9: =IF(AND(Table1[[#This Row],[مـديـن]]>0,Table1[[#This Row],[الحاله أ]]=0),"نقداً",Table1[[#This Row],[الحاله أ]]) -> 0 | H9: =Sheet1!$B$5 -> محمد
A10: =[1]الخزنية!A9 -> 0 | B10: =[1]الخزنية!B9 -> 0 | C10: =[1]الخزنية!C9 -> 0 | D10: =[1]الخزنية!D9 -> 00:00:00 | E10: =[1]الخزنية!E9 -> 0 | F10: =[1]الخزنية!F9 -> 0 | G10: =IF(AND(Table1[[#This Row],[مـديـن]]>0,Table1[[#This Row],[الحاله أ]]=0),"نقداً",Table1[[#This Row],[الحاله أ]]) -> 0 | H10: =Sheet1!$B$5 -> محمد
A11: =[1]الخزنية!A10 -> 0 | B11: =[1]الخزنية!B10 -> 0 | C11: =[1]الخزنية!C10 -> 0 | D11: =[1]الخزنية!D10 -> 00:00:00 | E11: =[1]الخزنية!E10 -> 0 | F11: =[1]الخزنية!F10 -> 0 | G11: =IF(AND(Table1[[#This Row],[مـديـن]]>0,Table1[[#This Row],[الحاله أ]]=0),"نقداً",Table1[[#This Row],[الحاله أ]]) -> 0 | H11: =Sheet1!$B$5 -> محمد
A12: =[1]الخزنية!A11 -> 0 | B12: =[1]الخزنية!B11 -> 0 | C12: =[1]الخزنية!C11 -> 0 | D12: =[1]الخزنية!D11 -> 00:00:00 | E12: =[1]الخزنية!E11 -> 0 | F12: =[1]الخزنية!F11 -> 0 | G12: =IF(AND(Table1[[#This Row],[مـديـن]]>0,Table1[[#This Row],[الحاله أ]]=0),"نقداً",Table1[[#This Row],[الحاله أ]]) -> 0 | H12: =Sheet1!$B$5 -> محمد
A13: =[1]الخزنية!A12 -> 0 | B13: =[1]الخزنية!B12 -> 0 | C13: =[1]الخزنية!C12 -> 0 | D13: =[1]الخزنية!D12 -> 00:00:00 | E13: =[1]الخزنية!E12 -> 0 | F13: =[1]الخزنية!F12 -> 0 | G13: =IF(AND(Table1[[#This Row],[مـديـن]]>0,Table1[[#This Row],[الحاله أ]]=0),"نقداً",Table1[[#This Row],[الحاله أ]]) -> 0 | H13: =Sheet1!$B$5 -> محمد
A14: =[1]الخزنية!A13 -> 0 | B14: =[1]الخزنية!B13 -> 0 | C14: =[1]الخزنية!C13 -> 0 | D14: =[1]الخزنية!D13 -> 00:00:00 | E14: =[1]الخزنية!E13 -> 0 | F14: =[1]الخزنية!F13 -> 0 | G14: =IF(AND(Table1[[#This Row],[مـديـن]]>0,Table1[[#This Row],[الحاله أ]]=0),"نقداً",Table1[[#This Row],[الحاله أ]]) -> 0 | H14: =Sheet1!$B$5 -> محمد
A15: =[1]الخزنية!A14 -> 0 | B15: =[1]الخزنية!B14 -> 0 | C15: =[1]الخزنية!C14 -> 0 | D15: =[1]الخزنية!D14 -> 00:00:00 | E15: =[1]الخزنية!E14 -> 0 | F15: =[1]الخزنية!F14 -> 0 | G15: =IF(AND(Table1[[#This Row],[مـديـن]]>0,Table1[[#This Row],[الحاله أ]]=0),"نقداً",Table1[[#This Row],[الحاله أ]]) -> 0 | H15: =Sheet1!$B$5 -> محمد
A16: =[1]الخزنية!A15 -> 0 | B16: =[1]الخزنية!B15 -> 0 | C16: =[1]الخزنية!C15 -> 0 | D16: =[1]الخزنية!D15 -> 00:00:00 | E16: =[1]الخزنية!E15 -> 0 | F16: =[1]الخزنية!F15 -> 0 | G16: =IF(AND(Table1[[#This Row],[مـديـن]]>0,Table1[[#This Row],[الحاله أ]]=0),"نقداً",Table1[[#This Row],[الحاله أ]]) -> 0 | H16: =Sheet1!$B$5 -> محمد
A17: =[1]الخزنية!A16 -> 0 | B17: =[1]الخزنية!B16 -> 0 | C17: =[1]الخزنية!C16 -> 0 | D17: =[1]الخزنية!D16 -> 00:00:00 | E17: =[1]الخزنية!E16 -> 0 | F17: =[1]الخزنية!F16 -> 0 | G17: =IF(AND(Table1[[#This Row],[مـديـن]]>0,Table1[[#This Row],[الحاله أ]]=0),"نقداً",Table1[[#This Row],[الحاله أ]]) -> 0 | H17: =Sheet1!$B$5 -> محمد
A18: =[1]الخزنية!A17 -> 0 | B18: =[1]الخزنية!B17 -> 0 | C18: =[1]الخزنية!C17 -> 0 | D18: =[1]الخزنية!D17 -> 00:00:00 | E18: =[1]الخزنية!E17 -> 0 | F18: =[1]الخزنية!F17 -> 0 | G18: =IF(AND(Table1[[#This Row],[مـديـن]]>0,Table1[[#This Row],[الحاله أ]]=0),"نقداً",Table1[[#This Row],[الحاله أ]]) -> 0 | H18: =Sheet1!$B$5 -> محمد
A19: =[1]الخزنية!A18 -> 0 | B19: =[1]الخزنية!B18 -> 0 | C19: =[1]الخزنية!C18 -> 0 | D19: =[1]الخزنية!D18 -> 00:00:00 | E19: =[1]الخزنية!E18 -> 0 | F19: =[1]الخزنية!F18 -> 0 | G19: =IF(AND(Table1[[#This Row],[مـديـن]]>0,Table1[[#This Row],[الحاله أ]]=0),"نقداً",Table1[[#This Row],[الحاله أ]]) -> 0 | H19: =Sheet1!$B$5 -> محمد
A20: =[1]الخزنية!A19 -> 0 | B20: =[1]الخزنية!B19 -> 0 | C20: =[1]الخزنية!C19 -> 0 | D20: =[1]الخزنية!D19 -> 00:00:00 | E20: =[1]الخزنية!E19 -> 0 | F20: =[1]الخزنية!F19 -> 0 | G20: =IF(AND(Table1[[#This Row],[مـديـن]]>0,Table1[[#This Row],[الحاله أ]]=0),"نقداً",Table1[[#This Row],[الحاله أ]]) -> 0 | H20: =Sheet1!$B$5 -> محمد
A21: =[1]الخزنية!A20 -> 0 | B21: =[1]الخزنية!B20 -> 0 | C21: =[1]الخزنية!C20 -> 0 | D21: =[1]الخزنية!D20 -> 00:00:00 | E21: =[1]الخزنية!E20 -> 0 | F21: =[1]الخزنية!F20 -> 0 | G21: =IF(AND(Table1[[#This Row],[مـديـن]]>0,Table1[[#This Row],[الحاله أ]]=0),"نقداً",Table1[[#This Row],[الحاله أ]]) -> 0 | H21: =Sheet1!$B$5 -> محمد
A22: =[1]الخزنية!A21 -> 0 | B22: =[1]الخزنية!B21 -> 0 | C22: =[1]الخزنية!C21 -> 0 | D22: =[1]الخزنية!D21 -> 00:00:00 | E22: =[1]الخزنية!E21 -> 0 | F22: =[1]الخزنية!F21 -> 0 | G22: =IF(AND(Table1[[#This Row],[مـديـن]]>0,Table1[[#This Row],[الحاله أ]]=0),"نقداً",Table1[[#This Row],[الحاله أ]]) -> 0 | H22: =Sheet1!$B$5 -> محمد
A23: =[1]الخزنية!A22 -> 0 | B23: =[1]الخزنية!B22 -> 0 | C23: =[1]الخزنية!C22 -> 0 | D23: =[1]الخزنية!D22 -> 00:00:00 | E23: =[1]الخزنية!E22 -> 0 | F23: =[1]الخزنية!F22 -> 0 | G23: =IF(AND(Table1[[#This Row],[مـديـن]]>0,Table1[[#This Row],[الحاله أ]]=0),"نقداً",Table1[[#This Row],[الحاله أ]]) -> 0 | H23: =Sheet1!$B$5 -> محمد
A24: =[1]الخزنية!A23 -> 0 | B24: =[1]الخزنية!B23 -> 0 | C24: =[1]الخزنية!C23 -> 0 | D24: =[1]الخزنية!D23 -> 00:00:00 | E24: =[1]الخزنية!E23 -> 0 | F24: =[1]الخزنية!F23 -> 0 | G24: =IF(AND(Table1[[#This Row],[مـديـن]]>0,Table1[[#This Row],[الحاله أ]]=0),"نقداً",Table1[[#This Row],[الحاله أ]]) -> 0 | H24: =Sheet1!$B$5 -> محمد
A25: =[1]الخزنية!A24 -> 0 | B25: =[1]الخزنية!B24 -> 0 | C25: =[1]الخزنية!C24 -> 0 | D25: =[1]الخزنية!D24 -> 00:00:00 | E25: =[1]الخزنية!E24 -> 0 | F25: =[1]الخزنية!F24 -> 0 | G25: =IF(AND(Table1[[#This Row],[مـديـن]]>0,Table1[[#This Row],[الحاله أ]]=0),"نقداً",Table1[[#This Row],[الحاله أ]]) -> 0 | H25: =Sheet1!$B$5 -> محمد
A26: =[1]الخزنية!A25 -> 0 | B26: =[1]الخزنية!B25 -> 0 | C26: =[1]الخزنية!C25 -> 0 | D26: =[1]الخزنية!D25 -> 00:00:00 | E26: =[1]الخزنية!E25 -> 0 | F26: =[1]الخزنية!F25 -> 0 | G26: =IF(AND(Table1[[#This Row],[مـديـن]]>0,Table1[[#This Row],[الحاله أ]]=0),"نقداً",Table1[[#This Row],[الحاله أ]]) -> 0 | H26: =Sheet1!$B$5 -> محمد
A27: =[1]الخزنية!A26 -> 0 | B27: =[1]الخزنية!B26 -> 0 | C27: =[1]الخزنية!C26 -> 0 | D27: =[1]الخزنية!D26 -> 00:00:00 | E27: =[1]الخزنية!E26 -> 0 | F27: =[1]الخزنية!F26 -> 0 | G27: =IF(AND(Table1[[#This Row],[مـديـن]]>0,Table1[[#This Row],[الحاله أ]]=0),"نقداً",Table1[[#This Row],[الحاله أ]]) -> 0 | H27: =Sheet1!$B$5 -> محمد
A28: =[1]الخزنية!A27 -> 0 | B28: =[1]الخزنية!B27 -> 0 | C28: =[1]الخزنية!C27 -> 0 | D28: =[1]الخزنية!D27 -> 00:00:00 | E28: =[1]الخزنية!E27 -> 0 | F28: =[1]الخزنية!F27 -> 0 | G28: =IF(AND(Table1[[#This Row],[مـديـن]]>0,Table1[[#This Row],[الحاله أ]]=0),"نقداً",Table1[[#This Row],[الحاله أ]]) -> 0 | H28: =Sheet1!$B$5 -> محمد
A29: =[1]الخزنية!A28 -> 0 | B29: =[1]الخزنية!B28 -> 0 | C29: =[1]الخزنية!C28 -> 0 | D29: =[1]الخزنية!D28 -> 00:00:00 | E29: =[1]الخزنية!E28 -> 0 | F29: =[1]الخزنية!F28 -> 0 | G29: =IF(AND(Table1[[#This Row],[مـديـن]]>0,Table1[[#This Row],[الحاله أ]]=0),"نقداً",Table1[[#This Row],[الحاله أ]]) -> 0 | H29: =Sheet1!$B$5 -> محمد
A30: =[1]الخزنية!A29 -> 0 | B30: =[1]الخزنية!B29 -> 0 | C30: =[1]الخزنية!C29 -> 0 | D30: =[1]الخزنية!D29 -> 00:00:00 | E30: =[1]الخزنية!E29 -> 0 | F30: =[1]الخزنية!F29 -> 0 | G30: =IF(AND(Table1[[#This Row],[مـديـن]]>0,Table1[[#This Row],[الحاله أ]]=0),"نقداً",Table1[[#This Row],[الحاله أ]]) -> 0 | H30: =Sheet1!$B$5 -> محمد
A31: =[1]الخزنية!A30 -> 0 | B31: =[1]الخزنية!B30 -> 0 | C31: =[1]الخزنية!C30 -> 0 | D31: =[1]الخزنية!D30 -> 00:00:00 | E31: =[1]الخزنية!E30 -> 0 | F31: =[1]الخزنية!F30 -> 0 | G31: =IF(AND(Table1[[#This Row],[مـديـن]]>0,Table1[[#This Row],[الحاله أ]]=0),"نقداً",Table1[[#This Row],[الحاله أ]]) -> 0 | H31: =Sheet1!$B$5 -> محمد
A32: =[1]الخزنية!A31 -> 0 | B32: =[1]الخزنية!B31 -> 0 | C32: =[1]الخزنية!C31 -> 0 | D32: =[1]الخزنية!D31 -> 00:00:00 | E32: =[1]الخزنية!E31 -> 0 | F32: =[1]الخزنية!F31 -> 0 | G32: =IF(AND(Table1[[#This Row],[مـديـن]]>0,Table1[[#This Row],[الحاله أ]]=0),"نقداً",Table1[[#This Row],[الحاله أ]]) -> 0 | H32: =Sheet1!$B$5 -> محمد
A33: =[1]الخزنية!A32 -> 0 | B33: =[1]الخزنية!B32 -> 0 | C33: =[1]الخزنية!C32 -> 0 | D33: =[1]الخزنية!D32 -> 00:00:00 | E33: =[1]الخزنية!E32 -> 0 | F33: =[1]الخزنية!F32 -> 0 | G33: =IF(AND(Table1[[#This Row],[مـديـن]]>0,Table1[[#This Row],[الحاله أ]]=0),"نقداً",Table1[[#This Row],[الحاله أ]]) -> 0 | H33: =Sheet1!$B$5 -> محمد
A34: =[1]الخزنية!A33 -> 0 | B34: =[1]الخزنية!B33 -> 0 | C34: =[1]الخزنية!C33 -> 0 | D34: =[1]الخزنية!D33 -> 00:00:00 | E34: =[1]الخزنية!E33 -> 0 | F34: =[1]الخزنية!F33 -> 0 | G34: =IF(AND(Table1[[#This Row],[مـديـن]]>0,Table1[[#This Row],[الحاله أ]]=0),"نقداً",Table1[[#This Row],[الحاله أ]]) -> 0 | H34: =Sheet1!$B$5 -> محمد
A35: =[1]الخزنية!A34 -> 0 | B35: =[1]الخزنية!B34 -> 0 | C35: =[1]الخزنية!C34 -> 0 | D35: =[1]الخزنية!D34 -> 00:00:00 | E35: =[1]الخزنية!E34 -> 0 | F35: =[1]الخزنية!F34 -> 0 | G35: =IF(AND(Table1[[#This Row],[مـديـن]]>0,Table1[[#This Row],[الحاله أ]]=0),"نقداً",Table1[[#This Row],[الحاله أ]]) -> 0 | H35: =Sheet1!$B$5 -> محمد
A36: =[1]الخزنية!A35 -> 0 | B36: =[1]الخزنية!B35 -> 0 | C36: =[1]الخزنية!C35 -> 0 | D36: =[1]الخزنية!D35 -> 00:00:00 | E36: =[1]الخزنية!E35 -> 0 | F36: =[1]الخزنية!F35 -> 0 | G36: =IF(AND(Table1[[#This Row],[مـديـن]]>0,Table1[[#This Row],[الحاله أ]]=0),"نقداً",Table1[[#This Row],[الحاله أ]]) -> 0 | H36: =Sheet1!$B$5 -> محمد
A37: =[1]الخزنية!A36 -> 0 | B37: =[1]الخزنية!B36 -> 0 | C37: =[1]الخزنية!C36 -> 0 | D37: =[1]الخزنية!D36 -> 00:00:00 | E37: =[1]الخزنية!E36 -> 0 | F37: =[1]الخزنية!F36 -> 0 | G37: =IF(AND(Table1[[#This Row],[مـديـن]]>0,Table1[[#This Row],[الحاله أ]]=0),"نقداً",Table1[[#This Row],[الحاله أ]]) -> 0 | H37: =Sheet1!$B$5 -> محمد
A38: =[1]الخزنية!A37 -> 0 | B38: =[1]الخزنية!B37 -> 0 | C38: =[1]الخزنية!C37 -> 0 | D38: =[1]الخزنية!D37 -> 00:00:00 | E38: =[1]الخزنية!E37 -> 0 | F38: =[1]الخزنية!F37 -> 0 | G38: =IF(AND(Table1[[#This Row],[مـديـن]]>0,Table1[[#This Row],[الحاله أ]]=0),"نقداً",Table1[[#This Row],[الحاله أ]]) -> 0 | H38: =Sheet1!$B$5 -> محمد
A39: =[1]الخزنية!A38 -> 0 | B39: =[1]الخزنية!B38 -> 0 | C39: =[1]الخزنية!C38 -> 0 | D39: =[1]الخزنية!D38 -> 00:00:00 | E39: =[1]الخزنية!E38 -> 0 | F39: =[1]الخزنية!F38 -> 0 | G39: =IF(AND(Table1[[#This Row],[مـديـن]]>0,Table1[[#This Row],[الحاله أ]]=0),"نقداً",Table1[[#This Row],[الحاله أ]]) -> 0 | H39: =Sheet1!$B$5 -> محمد
A40: =[1]الخزنية!A39 -> 0 | B40: =[1]الخزنية!B39 -> 0 | C40: =[1]الخزنية!C39 -> 0 | D40: =[1]الخزنية!D39 -> 00:00:00 | E40: =[1]الخزنية!E39 -> 0 | F40: =[1]الخزنية!F39 -> 0 | G40: =IF(AND(Table1[[#This Row],[مـديـن]]>0,Table1[[#This Row],[الحاله أ]]=0),"نقداً",Table1[[#This Row],[الحاله أ]]) -> 0 | H40: =Sheet1!$B$5 -> محمد
A41: =[1]الخزنية!A40 -> 0 | B41: =[1]الخزنية!B40 -> 0 | C41: =[1]الخزنية!C40 -> 0 | D41: =[1]الخزنية!D40 -> 00:00:00 | E41: =[1]الخزنية!E40 -> 0 | F41: =[1]الخزنية!F40 -> 0 | G41: =IF(AND(Table1[[#This Row],[مـديـن]]>0,Table1[[#This Row],[الحاله أ]]=0),"نقداً",Table1[[#This Row],[الحاله أ]]) -> 0 | H41: =Sheet1!$B$5 -> محمد
A42: =[1]الخزنية2!A6 -> 0 | B42: =[1]الخزنية2!B6 -> 0 | C42: =[1]الخزنية2!C6 -> 0 | D42: =[1]الخزنية2!D6 -> 00:00:00 | E42: =[1]الخزنية2!E6 -> 0 | F42: =[1]الخزنية2!F6 -> 0 | G42: =IF(AND(Table1[[#This Row],[مـديـن]]>0,Table1[[#This Row],[الحاله أ]]=0),"نقداً",Table1[[#This Row],[الحاله أ]]) -> 0 | H42: =Sheet1!$B$5 -> محمد
A43: =[1]الخزنية2!A7 -> 0 | B43: =[1]الخزنية2!B7 -> 0 | C43: =[1]الخزنية2!C7 -> 0 | D43: =[1]الخزنية2!D7 -> 00:00:00 | E43: =[1]الخزنية2!E7 -> 0 | F43: =[1]الخزنية2!F7 -> 0 | G43: =IF(AND(Table1[[#This Row],[مـديـن]]>0,Table1[[#This Row],[الحاله أ]]=0),"نقداً",Table1[[#This Row],[الحاله أ]]) -> 0 | H43: =Sheet1!$B$5 -> محمد
A44: =[1]الخزنية2!A8 -> 0 | B44: =[1]الخزنية2!B8 -> 0 | C44: =[1]الخزنية2!C8 -> 0 | D44: =[1]الخزنية2!D8 -> 00:00:00 | E44: =[1]الخزنية2!E8 -> 0 | F44: =[1]الخزنية2!F8 -> 0 | G44: =IF(AND(Table1[[#This Row],[مـديـن]]>0,Table1[[#This Row],[الحاله أ]]=0),"نقداً",Table1[[#This Row],[الحاله أ]]) -> 0 | H44: =Sheet1!$B$5 -> محمد
A45: =[1]الخزنية2!A9 -> 0 | B45: =[1]الخزنية2!B9 -> 0 | C45: =[1]الخزنية2!C9 -> 0 | D45: =[1]الخزنية2!D9 -> 00:00:00 | E45: =[1]الخزنية2!E9 -> 0 | F45: =[1]الخزنية2!F9 -> 0 | G45: =IF(AND(Table1[[#This Row],[مـديـن]]>0,Table1[[#This Row],[الحاله أ]]=0),"نقداً",Table1[[#This Row],[الحاله أ]]) -> 0 | H45: =Sheet1!$B$5 -> محمد
A46: =[1]الخزنية2!A10 -> 0 | B46: =[1]الخزنية2!B10 -> 0 | C46: =[1]الخزنية2!C10 -> 0 | D46: =[1]الخزنية2!D10 -> 00:00:00 | E46: =[1]الخزنية2!E10 -> 0 | F46: =[1]الخزنية2!F10 -> 0 | G46: =IF(AND(Table1[[#This Row],[مـديـن]]>0,Table1[[#This Row],[الحاله أ]]=0),"نقداً",Table1[[#This Row],[الحاله أ]]) -> 0 | H46: =Sheet1!$B$5 -> محمد
A47: =[1]الخزنية2!A11 -> 0 | B47: =[1]الخزنية2!B11 -> 0 | C47: =[1]الخزنية2!C11 -> 0 | D47: =[1]الخزنية2!D11 -> 00:00:00 | E47: =[1]الخزنية2!E11 -> 0 | F47: =[1]الخزنية2!F11 -> 0 | G47: =IF(AND(Table1[[#This Row],[مـديـن]]>0,Table1[[#This Row],[الحاله أ]]=0),"نقداً",Table1[[#This Row],[الحاله أ]]) -> 0 | H47: =Sheet1!$B$5 -> محمد
A48: =[1]الخزنية2!A12 -> 0 | B48: =[1]الخزنية2!B12 -> 0 | C48: =[1]الخزنية2!C12 -> 0 | D48: =[1]الخزنية2!D12 -> 00:00:00 | E48: =[1]الخزنية2!E12 -> 0 | F48: =[1]الخزنية2!F12 -> 0 | G48: =IF(AND(Table1[[#This Row],[مـديـن]]>0,Table1[[#This Row],[الحاله أ]]=0),"نقداً",Table1[[#This Row],[الحاله أ]]) -> 0 | H48: =Sheet1!$B$5 -> محمد
A49: =[1]الخزنية2!A13 -> 0 | B49: =[1]الخزنية2!B13 -> 0 | C49: =[1]الخزنية2!C13 -> 0 | D49: =[1]الخزنية2!D13 -> 00:00:00 | E49: =[1]الخزنية2!E13 -> 0 | F49: =[1]الخزنية2!F13 -> 0 | G49: =IF(AND(Table1[[#This Row],[مـديـن]]>0,Table1[[#This Row],[الحاله أ]]=0),"نقداً",Table1[[#This Row],[الحاله أ]]) -> 0 | H49: =Sheet1!$B$5 -> محمد
A50: =[1]الخزنية2!A14 -> 0 | B50: =[1]الخزنية2!B14 -> 0 | C50: =[1]الخزنية2!C14 -> 0 | D50: =[1]الخزنية2!D14 -> 00:00:00 | E50: =[1]الخزنية2!E14 -> 0 | F50: =[1]الخزنية2!F14 -> 0 | G50: =IF(AND(Table1[[#This Row],[مـديـن]]>0,Table1[[#This Row],[الحاله أ]]=0),"نقداً",Table1[[#This Row],[الحاله أ]]) -> 0 | H50: =Sheet1!$B$5 -> محمد
A51: =[1]الخزنية2!A15 -> 0 | B51: =[1]الخزنية2!B15 -> 0 | C51: =[1]الخزنية2!C15 -> 0 | D51: =[1]الخزنية2!D15 -> 00:00:00 | E51: =[1]الخزنية2!E15 -> 0 | F51: =[1]الخزنية2!F15 -> 0 | G51: =IF(AND(Table1[[#This Row],[مـديـن]]>0,Table1[[#This Row],[الحاله أ]]=0),"نقداً",Table1[[#This Row],[الحاله أ]]) -> 0 | H51: =Sheet1!$B$5 -> محمد
A52: =[1]الخزنية2!A16 -> 0 | B52: =[1]الخزنية2!B16 -> 0 | C52: =[1]الخزنية2!C16 -> 0 | D52: =[1]الخزنية2!D16 -> 00:00:00 | E52: =[1]الخزنية2!E16 -> 0 | F52: =[1]الخزنية2!F16 -> 0 | G52: =IF(AND(Table1[[#This Row],[مـديـن]]>0,Table1[[#This Row],[الحاله أ]]=0),"نقداً",Table1[[#This Row],[الحاله أ]]) -> 0 | H52: =Sheet1!$B$5 -> محمد
A53: =[1]الخزنية2!A17 -> 0 | B53: =[1]الخزنية2!B17 -> 0 | C53: =[1]الخزنية2!C17 -> 0 | D53: =[1]الخزنية2!D17 -> 00:00:00 | E53: =[1]الخزنية2!E17 -> 0 | F53: =[1]الخزنية2!F17 -> 0 | G53: =IF(AND(Table1[[#This Row],[مـديـن]]>0,Table1[[#This Row],[الحاله أ]]=0),"نقداً",Table1[[#This Row],[الحاله أ]]) -> 0 | H53: =Sheet1!$B$5 -> محمد
A54: =[1]الخزنية2!A18 -> 0 | B54: =[1]الخزنية2!B18 -> 0 | C54: =[1]الخزنية2!C18 -> 0 | D54: =[1]الخزنية2!D18 -> 00:00:00 | E54: =[1]الخزنية2!E18 -> 0 | F54: =[1]الخزنية2!F18 -> 0 | G54: =IF(AND(Table1[[#This Row],[مـديـن]]>0,Table1[[#This Row],[الحاله أ]]=0),"نقداً",Table1[[#This Row],[الحاله أ]]) -> 0 | H54: =Sheet1!$B$5 -> محمد
A55: =[1]الخزنية2!A19 -> 0 | B55: =[1]الخزنية2!B19 -> 0 | C55: =[1]الخزنية2!C19 -> 0 | D55: =[1]الخزنية2!D19 -> 00:00:00 | E55: =[1]الخزنية2!E19 -> 0 | F55: =[1]الخزنية2!F19 -> 0 | G55: =IF(AND(Table1[[#This Row],[مـديـن]]>0,Table1[[#This Row],[الحاله أ]]=0),"نقداً",Table1[[#This Row],[الحاله أ]]) -> 0 | H55: =Sheet1!$B$5 -> محمد
A56: =[1]الخزنية2!A20 -> 0 | B56: =[1]الخزنية2!B20 -> 0 | C56: =[1]الخزنية2!C20 -> 0 | D56: =[1]الخزنية2!D20 -> 00:00:00 | E56: =[1]الخزنية2!E20 -> 0 | F56: =[1]الخزنية2!F20 -> 0 | G56: =IF(AND(Table1[[#This Row],[مـديـن]]>0,Table1[[#This Row],[الحاله أ]]=0),"نقداً",Table1[[#This Row],[الحاله أ]]) -> 0 | H56: =Sheet1!$B$5 -> محمد
A57: =[1]الخزنية2!A21 -> 0 | B57: =[1]الخزنية2!B21 -> 0 | C57: =[1]الخزنية2!C21 -> 0 | D57: =[1]الخزنية2!D21 -> 00:00:00 | E57: =[1]الخزنية2!E21 -> 0 | F57: =[1]الخزنية2!F21 -> 0 | G57: =IF(AND(Table1[[#This Row],[مـديـن]]>0,Table1[[#This Row],[الحاله أ]]=0),"نقداً",Table1[[#This Row],[الحاله أ]]) -> 0 | H57: =Sheet1!$B$5 -> محمد
A58: =[1]الخزنية2!A22 -> 0 | B58: =[1]الخزنية2!B22 -> 0 | C58: =[1]الخزنية2!C22 -> 0 | D58: =[1]الخزنية2!D22 -> 00:00:00 | E58: =[1]الخزنية2!E22 -> 0 | F58: =[1]الخزنية2!F22 -> 0 | G58: =IF(AND(Table1[[#This Row],[مـديـن]]>0,Table1[[#This Row],[الحاله أ]]=0),"نقداً",Table1[[#This Row],[الحاله أ]]) -> 0 | H58: =Sheet1!$B$5 -> محمد
A59: =[1]الخزنية2!A23 -> 0 | B59: =[1]الخزنية2!B23 -> 0 | C59: =[1]الخزنية2!C23 -> 0 | D59: =[1]الخزنية2!D23 -> 00:00:00 | E59: =[1]الخزنية2!E23 -> 0 | F59: =[1]الخزنية2!F23 -> 0 | G59: =IF(AND(Table1[[#This Row],[مـديـن]]>0,Table1[[#This Row],[الحاله أ]]=0),"نقداً",Table1[[#This Row],[الحاله أ]]) -> 0 | H59: =Sheet1!$B$5 -> محمد
A60: =[1]الخزنية2!A24 -> 0 | B60: =[1]الخزنية2!B24 -> 0 | C60: =[1]الخزنية2!C24 -> 0 | D60: =[1]الخزنية2!D24 -> 00:00:00 | E60: =[1]الخزنية2!E24 -> 0 | F60: =[1]الخزنية2!F24 -> 0 | G60: =IF(AND(Table1[[#This Row],[مـديـن]]>0,Table1[[#This Row],[الحاله أ]]=0),"نقداً",Table1[[#This Row],[الحاله أ]]) -> 0 | H60: =Sheet1!$B$5 -> محمد
A61: =[1]الخزنية2!A25 -> 0 | B61: =[1]الخزنية2!B25 -> 0 | C61: =[1]الخزنية2!C25 -> 0 | D61: =[1]الخزنية2!D25 -> 00:00:00 | E61: =[1]الخزنية2!E25 -> 0 | F61: =[1]الخزنية2!F25 -> 0 | G61: =IF(AND(Table1[[#This Row],[مـديـن]]>0,Table1[[#This Row],[الحاله أ]]=0),"نقداً",Table1[[#This Row],[الحاله أ]]) -> 0 | H61: =Sheet1!$B$5 -> محمد
A62: =[1]الخزنية2!A26 -> 0 | B62: =[1]الخزنية2!B26 -> 0 | C62: =[1]الخزنية2!C26 -> 0 | D62: =[1]الخزنية2!D26 -> 00:00:00 | E62: =[1]الخزنية2!E26 -> 0 | F62: =[1]الخزنية2!F26 -> 0 | G62: =IF(AND(Table1[[#This Row],[مـديـن]]>0,Table1[[#This Row],[الحاله أ]]=0),"نقداً",Table1[[#This Row],[الحاله أ]]) -> 0 | H62: =Sheet1!$B$5 -> محمد
A63: =[1]الخزنية2!A27 -> 0 | B63: =[1]الخزنية2!B27 -> 0 | C63: =[1]الخزنية2!C27 -> 0 | D63: =[1]الخزنية2!D27 -> 00:00:00 | E63: =[1]الخزنية2!E27 -> 0 | F63: =[1]الخزنية2!F27 -> 0 | G63: =IF(AND(Table1[[#This Row],[مـديـن]]>0,Table1[[#This Row],[الحاله أ]]=0),"نقداً",Table1[[#This Row],[الحاله أ]]) -> 0 | H63: =Sheet1!$B$5 -> محمد
A64: =[1]الخزنية2!A28 -> 0 | B64: =[1]الخزنية2!B28 -> 0 | C64: =[1]الخزنية2!C28 -> 0 | D64: =[1]الخزنية2!D28 -> 00:00:00 | E64: =[1]الخزنية2!E28 -> 0 | F64: =[1]الخزنية2!F28 -> 0 | G64: =IF(AND(Table1[[#This Row],[مـديـن]]>0,Table1[[#This Row],[الحاله أ]]=0),"نقداً",Table1[[#This Row],[الحاله أ]]) -> 0 | H64: =Sheet1!$B$5 -> محمد
A65: =[1]الخزنية2!A29 -> 0 | B65: =[1]الخزنية2!B29 -> 0 | C65: =[1]الخزنية2!C29 -> 0 | D65: =[1]الخزنية2!D29 -> 00:00:00 | E65: =[1]الخزنية2!E29 -> 0 | F65: =[1]الخزنية2!F29 -> 0 | G65: =IF(AND(Table1[[#This Row],[مـديـن]]>0,Table1[[#This Row],[الحاله أ]]=0),"نقداً",Table1[[#This Row],[الحاله أ]]) -> 0 | H65: =Sheet1!$B$5 -> محمد
A66: =[1]الخزنية2!A30 -> 0 | B66: =[1]الخزنية2!B30 -> 0 | C66: =[1]الخزنية2!C30 -> 0 | D66: =[1]الخزنية2!D30 -> 00:00:00 | E66: =[1]الخزنية2!E30 -> 0 | F66: =[1]الخزنية2!F30 -> 0 | G66: =IF(AND(Table1[[#This Row],[مـديـن]]>0,Table1[[#This Row],[الحاله أ]]=0),"نقداً",Table1[[#This Row],[الحاله أ]]) -> 0 | H66: =Sheet1!$B$5 -> محمد
A67: =[1]الخزنية2!A31 -> 0 | B67: =[1]الخزنية2!B31 -> 0 | C67: =[1]الخزنية2!C31 -> 0 | D67: =[1]الخزنية2!D31 -> 00:00:00 | E67: =[1]الخزنية2!E31 -> 0 | F67: =[1]الخزنية2!F31 -> 0 | G67: =IF(AND(Table1[[#This Row],[مـديـن]]>0,Table1[[#This Row],[الحاله أ]]=0),"نقداً",Table1[[#This Row],[الحاله أ]]) -> 0 | H67: =Sheet1!$B$5 -> محمد
A68: =[1]الخزنية2!A32 -> 0 | B68: =[1]الخزنية2!B32 -> 0 | C68: =[1]الخزنية2!C32 -> 0 | D68: =[1]الخزنية2!D32 -> 00:00:00 | E68: =[1]الخزنية2!E32 -> 0 | F68: =[1]الخزنية2!F32 -> 0 | G68: =IF(AND(Table1[[#This Row],[مـديـن]]>0,Table1[[#This Row],[الحاله أ]]=0),"نقداً",Table1[[#This Row],[الحاله أ]]) -> 0 | H68: =Sheet1!$B$5 -> محمد
A69: =[1]الخزنية2!A33 -> 0 | B69: =[1]الخزنية2!B33 -> 0 | C69: =[1]الخزنية2!C33 -> 0 | D69: =[1]الخزنية2!D33 -> 00:00:00 | E69: =[1]الخزنية2!E33 -> 0 | F69: =[1]الخزنية2!F33 -> 0 | G69: =IF(AND(Table1[[#This Row],[مـديـن]]>0,Table1[[#This Row],[الحاله أ]]=0),"نقداً",Table1[[#This Row],[الحاله أ]]) -> 0 | H69: =Sheet1!$B$5 -> محمد
A70: =[1]الخزنية2!A34 -> 0 | B70: =[1]الخزنية2!B34 -> 0 | C70: =[1]الخزنية2!C34 -> 0 | D70: =[1]الخزنية2!D34 -> 00:00:00 | E70: =[1]الخزنية2!E34 -> 0 | F70: =[1]الخزنية2!F34 -> 0 | G70: =IF(AND(Table1[[#This Row],[مـديـن]]>0,Table1[[#This Row],[الحاله أ]]=0),"نقداً",Table1[[#This Row],[الحاله أ]]) -> 0 | H70: =Sheet1!$B$5 -> محمد
A71: =[1]الخزنية2!A35 -> 0 | B71: =[1]الخزنية2!B35 -> 0 | C71: =[1]الخزنية2!C35 -> 0 | D71: =[1]الخزنية2!D35 -> 00:00:00 | E71: =[1]الخزنية2!E35 -> 0 | F71: =[1]الخزنية2!F35 -> 0 | G71: =IF(AND(Table1[[#This Row],[مـديـن]]>0,Table1[[#This Row],[الحاله أ]]=0),"نقداً",Table1[[#This Row],[الحاله أ]]) -> 0 | H71: =Sheet1!$B$5 -> محمد
A72: =[1]الخزنية2!A36 -> 0 | B72: =[1]الخزنية2!B36 -> 0 | C72: =[1]الخزنية2!C36 -> 0 | D72: =[1]الخزنية2!D36 -> 00:00:00 | E72: =[1]الخزنية2!E36 -> 0 | F72: =[1]الخزنية2!F36 -> 0 | G72: =IF(AND(Table1[[#This Row],[مـديـن]]>0,Table1[[#This Row],[الحاله أ]]=0),"نقداً",Table1[[#This Row],[الحاله أ]]) -> 0 | H72: =Sheet1!$B$5 -> محمد
A73: =[1]الخزنية2!A37 -> 0 | B73: =[1]الخزنية2!B37 -> 0 | C73: =[1]الخزنية2!C37 -> 0 | D73: =[1]الخزنية2!D37 -> 00:00:00 | E73: =[1]الخزنية2!E37 -> 0 | F73: =[1]الخزنية2!F37 -> 0 | G73: =IF(AND(Table1[[#This Row],[مـديـن]]>0,Table1[[#This Row],[الحاله أ]]=0),"نقداً",Table1[[#This Row],[الحاله أ]]) -> 0 | H73: =Sheet1!$B$5 -> محمد
A74: =[1]الخزنية2!A38 -> 0 | B74: =[1]الخزنية2!B38 -> 0 | C74: =[1]الخزنية2!C38 -> 0 | D74: =[1]الخزنية2!D38 -> 00:00:00 | E74: =[1]الخزنية2!E38 -> 0 | F74: =[1]الخزنية2!F38 -> 0 | G74: =IF(AND(Table1[[#This Row],[مـديـن]]>0,Table1[[#This Row],[الحاله أ]]=0),"نقداً",Table1[[#This Row],[الحاله أ]]) -> 0 | H74: =Sheet1!$B$5 -> محمد
A75: =[1]الخزنية2!A39 -> 0 | B75: =[1]الخزنية2!B39 -> 0 | C75: =[1]الخزنية2!C39 -> 0 | D75: =[1]الخزنية2!D39 -> 00:00:00 | E75: =[1]الخزنية2!E39 -> 0 | F75: =[1]الخزنية2!F39 -> 0 | G75: =IF(AND(Table1[[#This Row],[مـديـن]]>0,Table1[[#This Row],[الحاله أ]]=0),"نقداً",Table1[[#This Row],[الحاله أ]]) -> 0 | H75: =Sheet1!$B$5 -> محمد
A76: =[1]الخزنية2!A40 -> 0 | B76: =[1]الخزنية2!B40 -> 0 | C76: =[1]الخزنية2!C40 -> 0 | D76: =[1]الخزنية2!D40 -> 00:00:00 | E76: =[1]الخزنية2!E40 -> 0 | F76: =[1]الخزنية2!F40 -> 0 | G76: =IF(AND(Table1[[#This Row],[مـديـن]]>0,Table1[[#This Row],[الحاله أ]]=0),"نقداً",Table1[[#This Row],[الحاله أ]]) -> 0 | H76: =Sheet1!$B$5 -> محمد
G77: =IF(AND(Table1[[#This Row],[مـديـن]]>0,Table1[[#This Row],[الحاله أ]]=0),"نقداً",Table1[[#This Row],[الحاله أ]]) -> 0
A78: =[2]الخزنية!A6 -> 5090 | B78: =[2]الخزنية!B6 -> 0 | C78: =[2]الخزنية!C6 -> وليد عطا | D78: =[2]الخزنية!D6 -> 09:45:46 | E78: =[2]الخزنية!E6 -> 0 | F78: =[2]الخزنية!F6 -> خـزيــنــه | G78: =IF(AND(Table1[[#This Row],[مـديـن]]>0,Table1[[#This Row],[الحاله أ]]=0),"نقداً",Table1[[#This Row],[الحاله أ]]) -> خـزيــنــه | H78: =Sheet1!$B$6 -> حسن
A79: =[2]الخزنية!A7 -> 310 | B79: =[2]الخزنية!B7 -> 0 | C79: محمود | D79: =[2]الخزنية!D7 -> 09:59:30 | E79: =[2]الخزنية!E7 -> 0 | F79: =[2]الخزنية!F7 -> 0 | G79: =IF(AND(Table1[[#This Row],[مـديـن]]>0,Table1[[#This Row],[الحاله أ]]=0),"نقداً",Table1[[#This Row],[الحاله أ]]) -> نقداً | H79: =Sheet1!$B$6 -> حسن
A80: =[2]الخزنية!A8 -> 950 | B80: =[2]الخزنية!B8 -> 0 | C80: خالد | D80: =[2]الخزنية!D8 -> 09:59:59 | E80: =[2]الخزنية!E8 -> 0 | F80: =[2]الخزنية!F8 -> 0 | G80: =IF(AND(Table1[[#This Row],[مـديـن]]>0,Table1[[#This Row],[الحاله أ]]=0),"نقداً",Table1[[#This Row],[الحاله أ]]) -> نقداً | H80: =Sheet1!$B$6 -> حسن
A81: =[2]الخزنية!A9 -> 65 | B81: =[2]الخزنية!B9 -> 0 | C81: حسين محى | D81: =[2]الخزنية!D9 -> 10:00:10 | E81: =[2]الخزنية!E9 -> 0 | F81: =[2]الخزنية!F9 -> 0 | G81: =IF(AND(Table1[[#This Row],[مـديـن]]>0,Table1[[#This Row],[الحاله أ]]=0),"نقداً",Table1[[#This Row],[الحاله أ]]) -> نقداً | H81: =Sheet1!$B$6 -> حسن
A82: =[2]الخزنية!A10 -> 200 | B82: =[2]الخزنية!B10 -> 0 | C82: =[2]الخزنية!C10 -> نقدا | D82: =[2]الخزنية!D10 -> 10:00:21 | E82: =[2]الخزنية!E10 -> 0 | F82: =[2]الخزنية!F10 -> 0 | G82: =IF(AND(Table1[[#This Row],[مـديـن]]>0,Table1[[#This Row],[الحاله أ]]=0),"نقداً",Table1[[#This Row],[الحاله أ]]) -> نقداً | H82: =Sheet1!$B$6 -> حسن
A83: =[2]الخزنية!A11 -> 65 | B83: =[2]الخزنية!B11 -> 0 | C83: =[2]الخزنية!C11 -> نقدا | D83: =[2]الخزنية!D11 -> 10:00:47 | E83: =[2]الخزنية!E11 -> 0 | F83: =[2]الخزنية!F11 -> 0 | G83: =IF(AND(Table1[[#This Row],[مـديـن]]>0,Table1[[#This Row],[الحاله أ]]=0),"نقداً",Table1[[#This Row],[الحاله أ]]) -> نقداً | H83: =Sheet1!$B$6 -> حسن
A84: =[2]الخزنية!A12 -> 8180 | B84: =[2]الخزنية!B12 -> 0 | C84: السورى | D84: =[2]الخزنية!D12 -> 10:01:32 | E84: =[2]الخزنية!E12 -> فوزى | F84: =[2]الخزنية!F12 -> تـــحــت الـــتـســويــه | G84: =IF(AND(Table1[[#This Row],[مـديـن]]>0,Table1[[#This Row],[الحاله أ]]=0),"نقداً",Table1[[#This Row],[الحاله أ]]) -> تـــحــت الـــتـســويــه | H84: =Sheet1!$B$6 -> حسن
A85: =[2]الخزنية!A13 -> 4100 | B85: =[2]الخزنية!B13 -> 0 | C85: مليجى | D85: =[2]الخزنية!D13 -> 10:01:57 | E85: =[2]الخزنية!E13 -> يسرى | F85: =[2]الخزنية!F13 -> 0 | G85: =IF(AND(Table1[[#This Row],[مـديـن]]>0,Table1[[#This Row],[الحاله أ]]=0),"نقداً",Table1[[#This Row],[الحاله أ]]) -> نقداً | H85: =Sheet1!$B$6 -> حسن
A86: =[2]الخزنية!A14 -> 2400 | B86: =[2]الخزنية!B14 -> 0 | C86: سالم | D86: =[2]الخزنية!D14 -> 10:02:17 | E86: =[2]الخزنية!E14 -> 0 | F86: =[2]الخزنية!F14 -> 0 | G86: =IF(AND(Table1[[#This Row],[مـديـن]]>0,Table1[[#This Row],[الحاله أ]]=0),"نقداً",Table1[[#This Row],[الحاله أ]]) -> نقداً | H86: =Sheet1!$B$6 -> حسن
A87: =[2]الخزنية!A15 -> 45 | B87: =[2]الخزنية!B15 -> 0 | C87: ايمن | D87: =[2]الخزنية!D15 -> 10:02:28 | E87: =[2]الخزنية!E15 -> 0 | F87: =[2]الخزنية!F15 -> 0 | G87: =IF(AND(Table1[[#This Row],[مـديـن]]>0,Table1[[#This Row],[الحاله أ]]=0),"نقداً",Table1[[#This Row],[الحاله أ]]) -> نقداً | H87: =Sheet1!$B$6 -> حسن
A88: =[2]الخزنية!A16 -> 845 | B88: =[2]الخزنية!B16 -> 0 | D88: =[2]الخزنية!D16 -> 10:02:52 | E88: =[2]الخزنية!E16 -> 0 | F88: =[2]الخزنية!F16 -> 0 | G88: =IF(AND(Table1[[#This Row],[مـديـن]]>0,Table1[[#This Row],[الحاله أ]]=0),"نقداً",Table1[[#This Row],[الحاله أ]]) -> نقداً | H88: =Sheet1!$B$6 -> حسن
A89: =[2]الخزنية!A17 -> 270 | B89: =[2]الخزنية!B17 -> 0 | D89: =[2]الخزنية!D17 -> 10:03:10 | E89: =[2]الخزنية!E17 -> 0 | F89: =[2]الخزنية!F17 -> 0 | G89: =IF(AND(Table1[[#This Row],[مـديـن]]>0,Table1[[#This Row],[الحاله أ]]=0),"نقداً",Table1[[#This Row],[الحاله أ]]) -> نقداً | H89: =Sheet1!$B$6 -> حسن
A90: =[2]الخزنية!A18 -> 1160 | B90: =[2]الخزنية!B18 -> 0 | D90: =[2]الخزنية!D18 -> 10:03:25 | E90: =[2]الخزنية!E18 -> 0 | F90: =[2]الخزنية!F18 -> تـــحــت الـــتـســويــه | G90: =IF(AND(Table1[[#This Row],[مـديـن]]>0,Table1[[#This Row],[الحاله أ]]=0),"نقداً",Table1[[#This Row],[الحاله أ]]) -> تـــحــت الـــتـســويــه | H90: =Sheet1!$B$6 -> حسن
A91: =[2]الخزنية!A19 -> 2270 | B91: =[2]الخزنية!B19 -> 0 | D91: =[2]الخزنية!D19 -> 10:04:26 | E91: =[2]الخزنية!E19 -> 0 | F91: =[2]الخزنية!F19 -> 0 | G91: =IF(AND(Table1[[#This Row],[مـديـن]]>0,Table1[[#This Row],[الحاله أ]]=0),"نقداً",Table1[[#This Row],[الحاله أ]]) -> نقداً | H91: =Sheet1!$B$6 -> حسن
A92: =[2]الخزنية!A20 -> 755 | B92: =[2]الخزنية!B20 -> 0 | D92: =[2]الخزنية!D20 -> 10:13:58 | E92: =[2]الخزنية!E20 -> 0 | F92: =[2]الخزنية!F20 -> 0 | G92: =IF(AND(Table1[[#This Row],[مـديـن]]>0,Table1[[#This Row],[الحاله أ]]=0),"نقداً",Table1[[#This Row],[الحاله أ]]) -> نقداً | H92: =Sheet1!$B$6 -> حسن
A93: =[2]الخزنية!A21 -> 5755 | B93: =[2]الخزنية!B21 -> 0 | D93: =[2]الخزنية!D21 -> 10:56:52 | E93: =[2]الخزنية!E21 -> 0 | F93: =[2]الخزنية!F21 -> تـــحــت الـــتـســويــه | G93: =IF(AND(Table1[[#This Row],[مـديـن]]>0,Table1[[#This Row],[الحاله أ]]=0),"نقداً",Table1[[#This Row],[الحاله أ]]) -> تـــحــت الـــتـســويــه | H93: =Sheet1!$B$6 -> حسن
A94: =[2]الخزنية!A22 -> 4830 | B94: =[2]الخزنية!B22 -> 0 | D94: =[2]الخزنية!D22 -> 10:57:25 | E94: =[2]الخزنية!E22 -> 0 | F94: =[2]الخزنية!F22 -> تــحصــيــل | G94: =IF(AND(Table1[[#This Row],[مـديـن]]>0,Table1[[#This Row],[الحاله أ]]=0),"نقداً",Table1[[#This Row],[الحاله أ]]) -> تــحصــيــل | H94: =Sheet1!$B$6 -> حسن
A95: =[2]الخزنية!A23 -> 1050 | B95: =[2]الخزنية!B23 -> 0 | D95: =[2]الخزنية!D23 -> 11:18:24 | E95: =[2]الخزنية!E23 -> 0 | F95: =[2]الخزنية!F23 -> 0 | G95: =IF(AND(Table1[[#This Row],[مـديـن]]>0,Table1[[#This Row],[الحاله أ]]=0),"نقداً",Table1[[#This Row],[الحاله أ]]) -> نقداً | H95: =Sheet1!$B$6 -> حسن
A96: =[2]الخزنية!A24 -> 893 | B96: =[2]الخزنية!B24 -> 0 | D96: =[2]الخزنية!D24 -> 12:50:31 | E96: =[2]الخزنية!E24 -> 0 | F96: =[2]الخزنية!F24 -> 0 | G96: =IF(AND(Table1[[#This Row],[مـديـن]]>0,Table1[[#This Row],[الحاله أ]]=0),"نقداً",Table1[[#This Row],[الحاله أ]]) -> نقداً | H96: =Sheet1!$B$6 -> حسن
A97: =[2]الخزنية!A25 -> 0 | B97: =[2]الخزنية!B25 -> 220 | C97: =[2]الخزنية!C25 -> محمود السورى/م0نقل المعادى | D97: =[2]الخزنية!D25 -> 11:25:53 | E97: =[2]الخزنية!E25 -> فوزى | F97: =[2]الخزنية!F25 -> 0 | G97: =IF(AND(Table1[[#This Row],[مـديـن]]>0,Table1[[#This Row],[الحاله أ]]=0),"نقداً",Table1[[#This Row],[الحاله أ]]) -> 0 | H97: =Sheet1!$B$6 -> حسن
A98: =[2]الخزنية!A26 -> 0 | B98: =[2]الخزنية!B26 -> 0 | C98: =[2]الخزنية!C26 -> 0 | D98: =[2]الخزنية!D26 -> 00:00:00 | E98: =[2]الخزنية!E26 -> 0 | F98: =[2]الخزنية!F26 -> 0 | G98: =IF(AND(Table1[[#This Row],[مـديـن]]>0,Table1[[#This Row],[الحاله أ]]=0),"نقداً",Table1[[#This Row],[الحاله أ]]) -> 0 | H98: =Sheet1!$B$6 -> حسن
A99: =[2]الخزنية!A27 -> 0 | B99: =[2]الخزنية!B27 -> 0 | C99: =[2]الخزنية!C27 -> 0 | D99: =[2]الخزنية!D27 -> 00:00:00 | E99: =[2]الخزنية!E27 -> م | F99: =[2]الخزنية!F27 -> 0 | G99: =IF(AND(Table1[[#This Row],[مـديـن]]>0,Table1[[#This Row],[الحاله أ]]=0),"نقداً",Table1[[#This Row],[الحاله أ]]) -> 0 | H99: =Sheet1!$B$6 -> حسن
A100: =[2]الخزنية!A28 -> 0 | B100: =[2]الخزنية!B28 -> 0 | C100: =[2]الخزنية!C28 -> 0 | D100: =[2]الخزنية!D28 -> 00:00:00 | E100: =[2]الخزنية!E28 -> 0 | F100: =[2]الخزنية!F28 -> 0 | G100: =IF(AND(Table1[[#This Row],[مـديـن]]>0,Table1[[#This Row],[الحاله أ]]=0),"نقداً",Table1[[#This Row],[الحاله أ]]) -> 0 | H100: =Sheet1!$B$6 -> حسن
A101: =[2]الخزنية!A29 -> 0 | B101: =[2]الخزنية!B29 -> 0 | C101: =[2]الخزنية!C29 -> 0 | D101: =[2]الخزنية!D29 -> 00:00:00 | E101: =[2]الخزنية!E29 -> 0 | F101: =[2]الخزنية!F29 -> 0 | G101: =IF(AND(Table1[[#This Row],[مـديـن]]>0,Table1[[#This Row],[الحاله أ]]=0),"نقداً",Table1[[#This Row],[الحاله أ]]) -> 0 | H101: =Sheet1!$B$6 -> حسن
A102: =[2]الخزنية!A30 -> 0 | B102: =[2]الخزنية!B30 -> 0 | C102: =[2]الخزنية!C30 -> 0 | D102: =[2]الخزنية!D30 -> 00:00:00 | E102: =[2]الخزنية!E30 -> 0 | F102: =[2]الخزنية!F30 -> 0 | G102: =IF(AND(Table1[[#This Row],[مـديـن]]>0,Table1[[#This Row],[الحاله أ]]=0),"نقداً",Table1[[#This Row],[الحاله أ]]) -> 0 | H102: =Sheet1!$B$6 -> حسن
A103: =[2]الخزنية!A31 -> 0 | B103: =[2]الخزنية!B31 -> 0 | C103: =[2]الخزنية!C31 -> 0 | D103: =[2]الخزنية!D31 -> 00:00:00 | E103: =[2]الخزنية!E31 -> 0 | F103: =[2]الخزنية!F31 -> 0 | G103: =IF(AND(Table1[[#This Row],[مـديـن]]>0,Table1[[#This Row],[الحاله أ]]=0),"نقداً",Table1[[#This Row],[الحاله أ]]) -> 0 | H103: =Sheet1!$B$6 -> حسن
A104: =[2]الخزنية!A32 -> 0 | B104: =[2]الخزنية!B32 -> 0 | C104: =[2]الخزنية!C32 -> 0 | D104: =[2]الخزنية!D32 -> 00:00:00 | E104: =[2]الخزنية!E32 -> 0 | F104: =[2]الخزنية!F32 -> 0 | G104: =IF(AND(Table1[[#This Row],[مـديـن]]>0,Table1[[#This Row],[الحاله أ]]=0),"نقداً",Table1[[#This Row],[الحاله أ]]) -> 0 | H104: =Sheet1!$B$6 -> حسن
A105: =[2]الخزنية!A33 -> 0 | B105: =[2]الخزنية!B33 -> 0 | C105: =[2]الخزنية!C33 -> 0 | D105: =[2]الخزنية!D33 -> 00:00:00 | E105: =[2]الخزنية!E33 -> 0 | F105: =[2]الخزنية!F33 -> 0 | G105: =IF(AND(Table1[[#This Row],[مـديـن]]>0,Table1[[#This Row],[الحاله أ]]=0),"نقداً",Table1[[#This Row],[الحاله أ]]) -> 0 | H105: =Sheet1!$B$6 -> حسن
A106: =[2]الخزنية!A34 -> 0 | B106: =[2]الخزنية!B34 -> 0 | C106: =[2]الخزنية!C34 -> 0 | D106: =[2]الخزنية!D34 -> 00:00:00 | E106: =[2]الخزنية!E34 -> 0 | F106: =[2]الخزنية!F34 -> 0 | G106: =IF(AND(Table1[[#This Row],[مـديـن]]>0,Table1[[#This Row],[الحاله أ]]=0),"نقداً",Table1[[#This Row],[الحاله أ]]) -> 0 | H106: =Sheet1!$B$6 -> حسن
A107: =[2]الخزنية!A35 -> 0 | B107: =[2]الخزنية!B35 -> 0 | C107: =[2]الخزنية!C35 -> 0 | D107: =[2]الخزنية!D35 -> 00:00:00 | E107: =[2]الخزنية!E35 -> 0 | F107: =[2]الخزنية!F35 -> 0 | G107: =IF(AND(Table1[[#This Row],[مـديـن]]>0,Table1[[#This Row],[الحاله أ]]=0),"نقداً",Table1[[#This Row],[الحاله أ]]) -> 0 | H107: =Sheet1!$B$6 -> حسن
A108: =[2]الخزنية!A36 -> 0 | B108: =[2]الخزنية!B36 -> 0 | C108: =[2]الخزنية!C36 -> 0 | D108: =[2]الخزنية!D36 -> 00:00:00 | E108: =[2]الخزنية!E36 -> 0 | F108: =[2]الخزنية!F36 -> 0 | G108: =IF(AND(Table1[[#This Row],[مـديـن]]>0,Table1[[#This Row],[الحاله أ]]=0),"نقداً",Table1[[#This Row],[الحاله أ]]) -> 0 | H108: =Sheet1!$B$6 -> حسن
A109: =[2]الخزنية!A37 -> 0 | B109: =[2]الخزنية!B37 -> 0 | C109: =[2]الخزنية!C37 -> 0 | D109: =[2]الخزنية!D37 -> 00:00:00 | E109: =[2]الخزنية!E37 -> 0 | F109: =[2]الخزنية!F37 -> 0 | G109: =IF(AND(Table1[[#This Row],[مـديـن]]>0,Table1[[#This Row],[الحاله أ]]=0),"نقداً",Table1[[#This Row],[الحاله أ]]) -> 0 | H109: =Sheet1!$B$6 -> حسن
A110: =[2]الخزنية!A38 -> 0 | B110: =[2]الخزنية!B38 -> 0 | C110: =[2]الخزنية!C38 -> 0 | D110: =[2]الخزنية!D38 -> 00:00:00 | E110: =[2]الخزنية!E38 -> 0 | F110: =[2]الخزنية!F38 -> 0 | G110: =IF(AND(Table1[[#This Row],[مـديـن]]>0,Table1[[#This Row],[الحاله أ]]=0),"نقداً",Table1[[#This Row],[الحاله أ]]) -> 0 | H110: =Sheet1!$B$6 -> حسن
A111: =[2]الخزنية!A39 -> 0 | B111: =[2]الخزنية!B39 -> 0 | C111: =[2]الخزنية!C39 -> 0 | D111: =[2]الخزنية!D39 -> 00:00:00 | E111: =[2]الخزنية!E39 -> 0 | F111: =[2]الخزنية!F39 -> 0 | G111: =IF(AND(Table1[[#This Row],[مـديـن]]>0,Table1[[#This Row],[الحاله أ]]=0),"نقداً",Table1[[#This Row],[الحاله أ]]) -> 0 | H111: =Sheet1!$B$6 -> حسن
A112: =[2]الخزنية!A40 -> 0 | B112: =[2]الخزنية!B40 -> 0 | C112: =[2]الخزنية!C40 -> 0 | D112: =[2]الخزنية!D40 -> 00:00:00 | E112: =[2]الخزنية!E40 -> 0 | F112: =[2]الخزنية!F40 -> 0 | G112: =IF(AND(Table1[[#This Row],[مـديـن]]>0,Table1[[#This Row],[الحاله أ]]=0),"نقداً",Table1[[#This Row],[الحاله أ]]) -> 0 | H112: =Sheet1!$B$6 -> حسن
A113: =[2]الخزنية2!A6 -> 0 | B113: =[2]الخزنية2!B6 -> 0 | C113: =[2]الخزنية2!C6 -> 0 | D113: =[2]الخزنية2!D6 -> 12:05:11 | E113: =[2]الخزنية2!E6 -> 0 | F113: =[2]الخزنية2!F6 -> 0 | G113: =IF(AND(Table1[[#This Row],[مـديـن]]>0,Table1[[#This Row],[الحاله أ]]=0),"نقداً",Table1[[#This Row],[الحاله أ]]) -> 0 | H113: =Sheet1!$B$6 -> حسن
A114: =[2]الخزنية2!A7 -> 0 | B114: =[2]الخزنية2!B7 -> 0 | C114: =[2]الخزنية2!C7 -> 0 | D114: =[2]الخزنية2!D7 -> 00:00:00 | E114: =[2]الخزنية2!E7 -> 0 | F114: =[2]الخزنية2!F7 -> 0 | G114: =IF(AND(Table1[[#This Row],[مـديـن]]>0,Table1[[#This Row],[الحاله أ]]=0),"نقداً",Table1[[#This Row],[الحاله أ]]) -> 0 | H114: =Sheet1!$B$6 -> حسن
A115: =[2]الخزنية2!A8 -> 0 | B115: =[2]الخزنية2!B8 -> 0 | C115: =[2]الخزنية2!C8 -> 0 | D115: =[2]الخزنية2!D8 -> 00:00:00 | E115: =[2]الخزنية2!E8 -> 0 | F115: =[2]الخزنية2!F8 -> 0 | G115: =IF(AND(Table1[[#This Row],[مـديـن]]>0,Table1[[#This Row],[الحاله أ]]=0),"نقداً",Table1[[#This Row],[الحاله أ]]) -> 0 | H115: =Sheet1!$B$6 -> حسن
A116: =[2]الخزنية2!A9 -> 0 | B116: =[2]الخزنية2!B9 -> 0 | C116: =[2]الخزنية2!C9 -> 0 | D116: =[2]الخزنية2!D9 -> 00:00:00 | E116: =[2]الخزنية2!E9 -> 0 | F116: =[2]الخزنية2!F9 -> 0 | G116: =IF(AND(Table1[[#This Row],[مـديـن]]>0,Table1[[#This Row],[الحاله أ]]=0),"نقداً",Table1[[#This Row],[الحاله أ]]) -> 0 | H116: =Sheet1!$B$6 -> حسن
A117: =[2]الخزنية2!A10 -> 0 | B117: =[2]الخزنية2!B10 -> 0 | C117: =[2]الخزنية2!C10 -> 0 | D117: =[2]الخزنية2!D10 -> 00:00:00 | E117: =[2]الخزنية2!E10 -> 0 | F117: =[2]الخزنية2!F10 -> 0 | G117: =IF(AND(Table1[[#This Row],[مـديـن]]>0,Table1[[#This Row],[الحاله أ]]=0),"نقداً",Table1[[#This Row],[الحاله أ]]) -> 0 | H117: =Sheet1!$B$6 -> حسن
A118: =[2]الخزنية2!A11 -> 0 | B118: =[2]الخزنية2!B11 -> 0 | C118: =[2]الخزنية2!C11 -> 0 | D118: =[2]الخزنية2!D11 -> 00:00:00 | E118: =[2]الخزنية2!E11 -> 0 | F118: =[2]الخزنية2!F11 -> 0 | G118: =IF(AND(Table1[[#This Row],[مـديـن]]>0,Table1[[#This Row],[الحاله أ]]=0),"نقداً",Table1[[#This Row],[الحاله أ]]) -> 0 | H118: =Sheet1!$B$6 -> حسن
A119: =[2]الخزنية2!A12 -> 0 | B119: =[2]الخزنية2!B12 -> 0 | C119: =[2]الخزنية2!C12 -> 0 | D119: =[2]الخزنية2!D12 -> 00:00:00 | E119: =[2]الخزنية2!E12 -> 0 | F119: =[2]الخزنية2!F12 -> 0 | G119: =IF(AND(Table1[[#This Row],[مـديـن]]>0,Table1[[#This Row],[الحاله أ]]=0),"نقداً",Table1[[#This Row],[الحاله أ]]) -> 0 | H119: =Sheet1!$B$6 -> حسن
A120: =[2]الخزنية2!A13 -> 0 | B120: =[2]الخزنية2!B13 -> 0 | C120: =[2]الخزنية2!C13 -> 0 | D120: =[2]الخزنية2!D13 -> 00:00:00 | E120: =[2]الخزنية2!E13 -> 0 | F120: =[2]الخزنية2!F13 -> 0 | G120: =IF(AND(Table1[[#This Row],[مـديـن]]>0,Table1[[#This Row],[الحاله أ]]=0),"نقداً",Table1[[#This Row],[الحاله أ]]) -> 0 | H120: =Sheet1!$B$6 -> حسن
A121: =[2]الخزنية2!A14 -> 0 | B121: =[2]الخزنية2!B14 -> 0 | C121: =[2]الخزنية2!C14 -> 0 | D121: =[2]الخزنية2!D14 -> 00:00:00 | E121: =[2]الخزنية2!E14 -> 0 | F121: =[2]الخزنية2!F14 -> 0 | G121: =IF(AND(Table1[[#This Row],[مـديـن]]>0,Table1[[#This Row],[الحاله أ]]=0),"نقداً",Table1[[#This Row],[الحاله أ]]) -> 0 | H121: =Sheet1!$B$6 -> حسن
A122: =[2]الخزنية2!A15 -> 0 | B122: =[2]الخزنية2!B15 -> 0 | C122: =[2]الخزنية2!C15 -> 0 | D122: =[2]الخزنية2!D15 -> 00:00:00 | E122: =[2]الخزنية2!E15 -> 0 | F122: =[2]الخزنية2!F15 -> 0 | G122: =IF(AND(Table1[[#This Row],[مـديـن]]>0,Table1[[#This Row],[الحاله أ]]=0),"نقداً",Table1[[#This Row],[الحاله أ]]) -> 0 | H122: =Sheet1!$B$6 -> حسن
A123: =[2]الخزنية2!A16 -> 0 | B123: =[2]الخزنية2!B16 -> 0 | C123: =[2]الخزنية2!C16 -> 0 | D123: =[2]الخزنية2!D16 -> 00:00:00 | E123: =[2]الخزنية2!E16 -> 0 | F123: =[2]الخزنية2!F16 -> 0 | G123: =IF(AND(Table1[[#This Row],[مـديـن]]>0,Table1[[#This Row],[الحاله أ]]=0),"نقداً",Table1[[#This Row],[الحاله أ]]) -> 0 | H123: =Sheet1!$B$6 -> حسن
A124: =[2]الخزنية2!A17 -> 0 | B124: =[2]الخزنية2!B17 -> 0 | C124: =[2]الخزنية2!C17 -> 0 | D124: =[2]الخزنية2!D17 -> 00:00:00 | E124: =[2]الخزنية2!E17 -> 0 | F124: =[2]الخزنية2!F17 -> 0 | G124: =IF(AND(Table1[[#This Row],[مـديـن]]>0,Table1[[#This Row],[الحاله أ]]=0),"نقداً",Table1[[#This Row],[الحاله أ]]) -> 0 | H124: =Sheet1!$B$6 -> حسن
A125: =[2]الخزنية2!A18 -> 0 | B125: =[2]الخزنية2!B18 -> 0 | C125: =[2]الخزنية2!C18 -> 0 | D125: =[2]الخزنية2!D18 -> 00:00:00 | E125: =[2]الخزنية2!E18 -> 0 | F125: =[2]الخزنية2!F18 -> 0 | G125: =IF(AND(Table1[[#This Row],[مـديـن]]>0,Table1[[#This Row],[الحاله أ]]=0),"نقداً",Table1[[#This Row],[الحاله أ]]) -> 0 | H125: =Sheet1!$B$6 -> حسن
A126: =[2]الخزنية2!A19 -> 0 | B126: =[2]الخزنية2!B19 -> 0 | C126: =[2]الخزنية2!C19 -> 0 | D126: =[2]الخزنية2!D19 -> 00:00:00 | E126: =[2]الخزنية2!E19 -> 0 | F126: =[2]الخزنية2!F19 -> 0 | G126: =IF(AND(Table1[[#This Row],[مـديـن]]>0,Table1[[#This Row],[الحاله أ]]=0),"نقداً",Table1[[#This Row],[الحاله أ]]) -> 0 | H126: =Sheet1!$B$6 -> حسن
A127: =[2]الخزنية2!A20 -> 0 | B127: =[2]الخزنية2!B20 -> 0 | C127: =[2]الخزنية2!C20 -> 0 | D127: =[2]الخزنية2!D20 -> 00:00:00 | E127: =[2]الخزنية2!E20 -> 0 | F127: =[2]الخزنية2!F20 -> 0 | G127: =IF(AND(Table1[[#This Row],[مـديـن]]>0,Table1[[#This Row],[الحاله أ]]=0),"نقداً",Table1[[#This Row],[الحاله أ]]) -> 0 | H127: =Sheet1!$B$6 -> حسن
A128: =[2]الخزنية2!A21 -> 0 | B128: =[2]الخزنية2!B21 -> 0 | C128: =[2]الخزنية2!C21 -> 0 | D128: =[2]الخزنية2!D21 -> 00:00:00 | E128: =[2]الخزنية2!E21 -> 0 | F128: =[2]الخزنية2!F21 -> 0 | G128: =IF(AND(Table1[[#This Row],[مـديـن]]>0,Table1[[#This Row],[الحاله أ]]=0),"نقداً",Table1[[#This Row],[الحاله أ]]) -> 0 | H128: =Sheet1!$B$6 -> حسن
A129: =[2]الخزنية2!A22 -> 0 | B129: =[2]الخزنية2!B22 -> 0 | C129: =[2]الخزنية2!C22 -> 0 | D129: =[2]الخزنية2!D22 -> 00:00:00 | E129: =[2]الخزنية2!E22 -> 0 | F129: =[2]الخزنية2!F22 -> 0 | G129: =IF(AND(Table1[[#This Row],[مـديـن]]>0,Table1[[#This Row],[الحاله أ]]=0),"نقداً",Table1[[#This Row],[الحاله أ]]) -> 0 | H129: =Sheet1!$B$6 -> حسن
A130: =[2]الخزنية2!A23 -> 0 | B130: =[2]الخزنية2!B23 -> 0 | C130: =[2]الخزنية2!C23 -> 0 | D130: =[2]الخزنية2!D23 -> 00:00:00 | E130: =[2]الخزنية2!E23 -> 0 | F130: =[2]الخزنية2!F23 -> 0 | G130: =IF(AND(Table1[[#This Row],[مـديـن]]>0,Table1[[#This Row],[الحاله أ]]=0),"نقداً",Table1[[#This Row],[الحاله أ]]) -> 0 | H130: =Sheet1!$B$6 -> حسن
A131: =[2]الخزنية2!A24 -> 0 | B131: =[2]الخزنية2!B24 -> 0 | C131: =[2]الخزنية2!C24 -> 0 | D131: =[2]الخزنية2!D24 -> 00:00:00 | E131: =[2]الخزنية2!E24 -> 0 | F131: =[2]الخزنية2!F24 -> 0 | G131: =IF(AND(Table1[[#This Row],[مـديـن]]>0,Table1[[#This Row],[الحاله أ]]=0),"نقداً",Table1[[#This Row],[الحاله أ]]) -> 0 | H131: =Sheet1!$B$6 -> حسن
A132: =[2]الخزنية2!A25 -> 0 | B132: =[2]الخزنية2!B25 -> 0 | C132: =[2]الخزنية2!C25 -> 0 | D132: =[2]الخزنية2!D25 -> 00:00:00 | E132: =[2]الخزنية2!E25 -> 0 | F132: =[2]الخزنية2!F25 -> 0 | G132: =IF(AND(Table1[[#This Row],[مـديـن]]>0,Table1[[#This Row],[الحاله أ]]=0),"نقداً",Table1[[#This Row],[الحاله أ]]) -> 0 | H132: =Sheet1!$B$6 -> حسن
A133: =[2]الخزنية2!A26 -> 0 | B133: =[2]الخزنية2!B26 -> 0 | C133: =[2]الخزنية2!C26 -> 0 | D133: =[2]الخزنية2!D26 -> 00:00:00 | E133: =[2]الخزنية2!E26 -> 0 | F133: =[2]الخزنية2!F26 -> 0 | G133: =IF(AND(Table1[[#This Row],[مـديـن]]>0,Table1[[#This Row],[الحاله أ]]=0),"نقداً",Table1[[#This Row],[الحاله أ]]) -> 0 | H133: =Sheet1!$B$6 -> حسن
A134: =[2]الخزنية2!A27 -> 0 | B134: =[2]الخزنية2!B27 -> 0 | C134: =[2]الخزنية2!C27 -> 0 | D134: =[2]الخزنية2!D27 -> 00:00:00 | E134: =[2]الخزنية2!E27 -> 0 | F134: =[2]الخزنية2!F27 -> 0 | G134: =IF(AND(Table1[[#This Row],[مـديـن]]>0,Table1[[#This Row],[الحاله أ]]=0),"نقداً",Table1[[#This Row],[الحاله أ]]) -> 0 | H134: =Sheet1!$B$6 -> حسن
A135: =[2]الخزنية2!A28 -> 0 | B135: =[2]الخزنية2!B28 -> 0 | C135: =[2]الخزنية2!C28 -> 0 | D135: =[2]الخزنية2!D28 -> 00:00:00 | E135: =[2]الخزنية2!E28 -> 0 | F135: =[2]الخزنية2!F28 -> 0 | G135: =IF(AND(Table1[[#This Row],[مـديـن]]>0,Table1[[#This Row],[الحاله أ]]=0),"نقداً",Table1[[#This Row],[الحاله أ]]) -> 0 | H135: =Sheet1!$B$6 -> حسن
A136: =[2]الخزنية2!A29 -> 0 | B136: =[2]الخزنية2!B29 -> 0 | C136: =[2]الخزنية2!C29 -> 0 | D136: =[2]الخزنية2!D29 -> 00:00:00 | E136: =[2]الخزنية2!E29 -> 0 | F136: =[2]الخزنية2!F29 -> 0 | G136: =IF(AND(Table1[[#This Row],[مـديـن]]>0,Table1[[#This Row],[الحاله أ]]=0),"نقداً",Table1[[#This Row],[الحاله أ]]) -> 0 | H136: =Sheet1!$B$6 -> حسن
A137: =[2]الخزنية2!A30 -> 0 | B137: =[2]الخزنية2!B30 -> 0 | C137: =[2]الخزنية2!C30 -> 0 | D137: =[2]الخزنية2!D30 -> 00:00:00 | E137: =[2]الخزنية2!E30 -> 0 | F137: =[2]الخزنية2!F30 -> 0 | G137: =IF(AND(Table1[[#This Row],[مـديـن]]>0,Table1[[#This Row],[الحاله أ]]=0),"نقداً",Table1[[#This Row],[الحاله أ]]) -> 0 | H137: =Sheet1!$B$6 -> حسن
A138: =[2]الخزنية2!A31 -> 0 | B138: =[2]الخزنية2!B31 -> 0 | C138: =[2]الخزنية2!C31 -> 0 | D138: =[2]الخزنية2!D31 -> 00:00:00 | E138: =[2]الخزنية2!E31 -> 0 | F138: =[2]الخزنية2!F31 -> 0 | G138: =IF(AND(Table1[[#This Row],[مـديـن]]>0,Table1[[#This Row],[الحاله أ]]=0),"نقداً",Table1[[#This Row],[الحاله أ]]) -> 0 | H138: =Sheet1!$B$6 -> حسن
A139: =[2]الخزنية2!A32 -> 0 | B139: =[2]الخزنية2!B32 -> 0 | C139: =[2]الخزنية2!C32 -> 0 | D139: =[2]الخزنية2!D32 -> 00:00:00 | E139: =[2]الخزنية2!E32 -> 0 | F139: =[2]الخزنية2!F32 -> 0 | G139: =IF(AND(Table1[[#This Row],[مـديـن]]>0,Table1[[#This Row],[الحاله أ]]=0),"نقداً",Table1[[#This Row],[الحاله أ]]) -> 0 | H139: =Sheet1!$B$6 -> حسن
A140: =[2]الخزنية2!A33 -> 0 | B140: =[2]الخزنية2!B33 -> 0 | C140: =[2]الخزنية2!C33 -> 0 | D140: =[2]الخزنية2!D33 -> 00:00:00 | E140: =[2]الخزنية2!E33 -> 0 | F140: =[2]الخزنية2!F33 -> 0 | G140: =IF(AND(Table1[[#This Row],[مـديـن]]>0,Table1[[#This Row],[الحاله أ]]=0),"نقداً",Table1[[#This Row],[الحاله أ]]) -> 0 | H140: =Sheet1!$B$6 -> حسن
A141: =[2]الخزنية2!A34 -> 0 | B141: =[2]الخزنية2!B34 -> 0 | C141: =[2]الخزنية2!C34 -> 0 | D141: =[2]الخزنية2!D34 -> 00:00:00 | E141: =[2]الخزنية2!E34 -> 0 | F141: =[2]الخزنية2!F34 -> 0 | G141: =IF(AND(Table1[[#This Row],[مـديـن]]>0,Table1[[#This Row],[الحاله أ]]=0),"نقداً",Table1[[#This Row],[الحاله أ]]) -> 0 | H141: =Sheet1!$B$6 -> حسن
A142: =[2]الخزنية2!A35 -> 0 | B142: =[2]الخزنية2!B35 -> 0 | C142: =[2]الخزنية2!C35 -> 0 | D142: =[2]الخزنية2!D35 -> 00:00:00 | E142: =[2]الخزنية2!E35 -> 0 | F142: =[2]الخزنية2!F35 -> 0 | G142: =IF(AND(Table1[[#This Row],[مـديـن]]>0,Table1[[#This Row],[الحاله أ]]=0),"نقداً",Table1[[#This Row],[الحاله أ]]) -> 0 | H142: =Sheet1!$B$6 -> حسن
A143: =[2]الخزنية2!A36 -> 0 | B143: =[2]الخزنية2!B36 -> 0 | C143: =[2]الخزنية2!C36 -> 0 | D143: =[2]الخزنية2!D36 -> 00:00:00 | E143: =[2]الخزنية2!E36 -> 0 | F143: =[2]الخزنية2!F36 -> 0 | G143: =IF(AND(Table1[[#This Row],[مـديـن]]>0,Table1[[#This Row],[الحاله أ]]=0),"نقداً",Table1[[#This Row],[الحاله أ]]) -> 0 | H143: =Sheet1!$B$6 -> حسن
A144: =[2]الخزنية2!A37 -> 0 | B144: =[2]الخزنية2!B37 -> 0 | C144: =[2]الخزنية2!C37 -> 0 | D144: =[2]الخزنية2!D37 -> 00:00:00 | E144: =[2]الخزنية2!E37 -> 0 | F144: =[2]الخزنية2!F37 -> 0 | G144: =IF(AND(Table1[[#This Row],[مـديـن]]>0,Table1[[#This Row],[الحاله أ]]=0),"نقداً",Table1[[#This Row],[الحاله أ]]) -> 0 | H144: =Sheet1!$B$6 -> حسن
A145: =[2]الخزنية2!A38 -> 0 | B145: =[2]الخزنية2!B38 -> 0 | C145: =[2]الخزنية2!C38 -> 0 | D145: =[2]الخزنية2!D38 -> 00:00:00 | E145: =[2]الخزنية2!E38 -> 0 | F145: =[2]الخزنية2!F38 -> 0 | G145: =IF(AND(Table1[[#This Row],[مـديـن]]>0,Table1[[#This Row],[الحاله أ]]=0),"نقداً",Table1[[#This Row],[الحاله أ]]) -> 0 | H145: =Sheet1!$B$6 -> حسن
A146: =[2]الخزنية2!A39 -> 0 | B146: =[2]الخزنية2!B39 -> 0 | C146: =[2]الخزنية2!C39 -> 0 | D146: =[2]الخزنية2!D39 -> 00:00:00 | E146: =[2]الخزنية2!E39 -> 0 | F146: =[2]الخزنية2!F39 -> 0 | G146: =IF(AND(Table1[[#This Row],[مـديـن]]>0,Table1[[#This Row],[الحاله أ]]=0),"نقداً",Table1[[#This Row],[الحاله أ]]) -> 0 | H146: =Sheet1!$B$6 -> حسن
A147: =[2]الخزنية2!A40 -> 0 | B147: =[2]الخزنية2!B40 -> 0 | C147: =[2]الخزنية2!C40 -> 0 | D147: =[2]الخزنية2!D40 -> 00:00:00 | E147: =[2]الخزنية2!E40 -> 0 | F147: =[2]الخزنية2!F40 -> 0 | G147: =IF(AND(Table1[[#This Row],[مـديـن]]>0,Table1[[#This Row],[الحاله أ]]=0),"نقداً",Table1[[#This Row],[الحاله أ]]) -> 0 | H147: =Sheet1!$B$6 -> حسن
G148: =IF(AND(Table1[[#This Row],[مـديـن]]>0,Table1[[#This Row],[الحاله أ]]=0),"نقداً",Table1[[#This Row],[الحاله أ]]) -> 0
A149: =[3]الخزنية!A6 -> 2000 | B149: =[3]الخزنية!B6 -> 0 | D149: =[3]الخزنية!D6 -> 08:54:02 | E149: =[3]الخزنية!E6 -> 0 | F149: =[3]الخزنية!F6 -> 0 | G149: =IF(AND(Table1[[#This Row],[مـديـن]]>0,Table1[[#This Row],[الحاله أ]]=0),"نقداً",Table1[[#This Row],[الحاله أ]]) -> نقداً | H149: =Sheet1!$B$7 -> صالح
A150: =[3]الخزنية!A7 -> 120 | B150: =[3]الخزنية!B7 -> 0 | D150: =[3]الخزنية!D7 -> 08:54:20 | E150: =[3]الخزنية!E7 -> 0 | F150: =[3]الخزنية!F7 -> 0 | G150: =IF(AND(Table1[[#This Row],[مـديـن]]>0,Table1[[#This Row],[الحاله أ]]=0),"نقداً",Table1[[#This Row],[الحاله أ]]) -> نقداً | H150: =Sheet1!$B$7 -> صالح
A151: =[3]الخزنية!A8 -> 225 | B151: =[3]الخزنية!B8 -> 0 | D151: =[3]الخزنية!D8 -> 08:54:30 | E151: =[3]الخزنية!E8 -> 0 | F151: =[3]الخزنية!F8 -> 0 | G151: =IF(AND(Table1[[#This Row],[مـديـن]]>0,Table1[[#This Row],[الحاله أ]]=0),"نقداً",Table1[[#This Row],[الحاله أ]]) -> نقداً | H151: =Sheet1!$B$7 -> صالح
A152: =[3]الخزنية!A9 -> 205 | B152: =[3]الخزنية!B9 -> 0 | D152: =[3]الخزنية!D9 -> 09:46:04 | E152: =[3]الخزنية!E9 -> 0 | F152: =[3]الخزنية!F9 -> 0 | G152: =IF(AND(Table1[[#This Row],[مـديـن]]>0,Table1[[#This Row],[الحاله أ]]=0),"نقداً",Table1[[#This Row],[الحاله أ]]) -> نقداً | H152: =Sheet1!$B$7 -> صالح
A153: =[3]الخزنية!A10 -> 240 | B153: =[3]الخزنية!B10 -> 0 | D153: =[3]الخزنية!D10 -> 09:49:49 | E153: =[3]الخزنية!E10 -> 0 | F153: =[3]الخزنية!F10 -> 0 | G153: =IF(AND(Table1[[#This Row],[مـديـن]]>0,Table1[[#This Row],[الحاله أ]]=0),"نقداً",Table1[[#This Row],[الحاله أ]]) -> نقداً | H153: =Sheet1!$B$7 -> صالح
A154: =[3]الخزنية!A11 -> 1000 | B154: =[3]الخزنية!B11 -> 0 | D154: =[3]الخزنية!D11 -> 10:59:48 | E154: =[3]الخزنية!E11 -> 0 | F154: =[3]الخزنية!F11 -> 0 | G154: =IF(AND(Table1[[#This Row],[مـديـن]]>0,Table1[[#This Row],[الحاله أ]]=0),"نقداً",Table1[[#This Row],[الحاله أ]]) -> نقداً | H154: =Sheet1!$B$7 -> صالح
A155: =[3]الخزنية!A12 -> 700 | B155: =[3]الخزنية!B12 -> 0 | D155: =[3]الخزنية!D12 -> 10:59:53 | E155: =[3]الخزنية!E12 -> 0 | F155: =[3]الخزنية!F12 -> 0 | G155: =IF(AND(Table1[[#This Row],[مـديـن]]>0,Table1[[#This Row],[الحاله أ]]=0),"نقداً",Table1[[#This Row],[الحاله أ]]) -> نقداً | H155: =Sheet1!$B$7 -> صالح
A156: =[3]الخزنية!A13 -> 0 | B156: =[3]الخزنية!B13 -> 0 | C156: =[3]الخزنية!C13 -> 0 | D156: =[3]الخزنية!D13 -> 00:00:00 | E156: =[3]الخزنية!E13 -> 0 | F156: =[3]الخزنية!F13 -> 0 | G156: =IF(AND(Table1[[#This Row],[مـديـن]]>0,Table1[[#This Row],[الحاله أ]]=0),"نقداً",Table1[[#This Row],[الحاله أ]]) -> 0 | H156: =Sheet1!$B$7 -> صالح
A157: =[3]الخزنية!A14 -> 0 | B157: =[3]الخزنية!B14 -> 0 | C157: =[3]الخزنية!C14 -> 0 | D157: =[3]الخزنية!D14 -> 00:00:00 | E157: =[3]الخزنية!E14 -> 0 | F157: =[3]الخزنية!F14 -> 0 | G157: =IF(AND(Table1[[#This Row],[مـديـن]]>0,Table1[[#This Row],[الحاله أ]]=0),"نقداً",Table1[[#This Row],[الحاله أ]]) -> 0 | H157: =Sheet1!$B$7 -> صالح
A158: =[3]الخزنية!A15 -> 0 | B158: =[3]الخزنية!B15 -> 0 | C158: =[3]الخزنية!C15 -> 0 | D158: =[3]الخزنية!D15 -> 00:00:00 | E158: =[3]الخزنية!E15 -> 0 | F158: =[3]الخزنية!F15 -> 0 | G158: =IF(AND(Table1[[#This Row],[مـديـن]]>0,Table1[[#This Row],[الحاله أ]]=0),"نقداً",Table1[[#This Row],[الحاله أ]]) -> 0 | H158: =Sheet1!$B$7 -> صالح
A159: =[3]الخزنية!A16 -> 0 | B159: =[3]الخزنية!B16 -> 0 | C159: =[3]الخزنية!C16 -> 0 | D159: =[3]الخزنية!D16 -> 00:00:00 | E159: =[3]الخزنية!E16 -> 0 | F159: =[3]الخزنية!F16 -> 0 | G159: =IF(AND(Table1[[#This Row],[مـديـن]]>0,Table1[[#This Row],[الحاله أ]]=0),"نقداً",Table1[[#This Row],[الحاله أ]]) -> 0 | H159: =Sheet1!$B$7 -> صالح
A160: =[3]الخزنية!A17 -> 0 | B160: =[3]الخزنية!B17 -> 0 | C160: =[3]الخزنية!C17 -> 0 | D160: =[3]الخزنية!D17 -> 00:00:00 | E160: =[3]الخزنية!E17 -> 0 | F160: =[3]الخزنية!F17 -> 0 | G160: =IF(AND(Table1[[#This Row],[مـديـن]]>0,Table1[[#This Row],[الحاله أ]]=0),"نقداً",Table1[[#This Row],[الحاله أ]]) -> 0 | H160: =Sheet1!$B$7 -> صالح
A161: =[3]الخزنية!A18 -> 0 | B161: =[3]الخزنية!B18 -> 0 | C161: =[3]الخزنية!C18 -> 0 | D161: =[3]الخزنية!D18 -> 00:00:00 | E161: =[3]الخزنية!E18 -> 0 | F161: =[3]الخزنية!F18 -> 0 | G161: =IF(AND(Table1[[#This Row],[مـديـن]]>0,Table1[[#This Row],[الحاله أ]]=0),"نقداً",Table1[[#This Row],[الحاله أ]]) -> 0 | H161: =Sheet1!$B$7 -> صالح
A162: =[3]الخزنية!A19 -> 0 | B162: =[3]الخزنية!B19 -> 0 | C162: =[3]الخزنية!C19 -> 0 | D162: =[3]الخزنية!D19 -> 00:00:00 | E162: =[3]الخزنية!E19 -> 0 | F162: =[3]الخزنية!F19 -> 0 | G162: =IF(AND(Table1[[#This Row],[مـديـن]]>0,Table1[[#This Row],[الحاله أ]]=0),"نقداً",Table1[[#This Row],[الحاله أ]]) -> 0 | H162: =Sheet1!$B$7 -> صالح
A163: =[3]الخزنية!A20 -> 0 | B163: =[3]الخزنية!B20 -> 0 | C163: =[3]الخزنية!C20 -> 0 | D163: =[3]الخزنية!D20 -> 00:00:00 | E163: =[3]الخزنية!E20 -> 0 | F163: =[3]الخزنية!F20 -> 0 | G163: =IF(AND(Table1[[#This Row],[مـديـن]]>0,Table1[[#This Row],[الحاله أ]]=0),"نقداً",Table1[[#This Row],[الحاله أ]]) -> 0 | H163: =Sheet1!$B$7 -> صالح
A164: =[3]الخزنية!A21 -> 0 | B164: =[3]الخزنية!B21 -> 0 | C164: =[3]الخزنية!C21 -> 0 | D164: =[3]الخزنية!D21 -> 00:00:00 | E164: =[3]الخزنية!E21 -> 0 | F164: =[3]الخزنية!F21 -> 0 | G164: =IF(AND(Table1[[#This Row],[مـديـن]]>0,Table1[[#This Row],[الحاله أ]]=0),"نقداً",Table1[[#This Row],[الحاله أ]]) -> 0 | H164: =Sheet1!$B$7 -> صالح
A165: =[3]الخزنية!A22 -> 0 | B165: =[3]الخزنية!B22 -> 0 | C165: =[3]الخزنية!C22 -> 0 | D165: =[3]الخزنية!D22 -> 00:00:00 | E165: =[3]الخزنية!E22 -> 0 | F165: =[3]الخزنية!F22 -> 0 | G165: =IF(AND(Table1[[#This Row],[مـديـن]]>0,Table1[[#This Row],[الحاله أ]]=0),"نقداً",Table1[[#This Row],[الحاله أ]]) -> 0 | H165: =Sheet1!$B$7 -> صالح
A166: =[3]الخزنية!A23 -> 0 | B166: =[3]الخزنية!B23 -> 0 | C166: =[3]الخزنية!C23 -> 0 | D166: =[3]الخزنية!D23 -> 00:00:00 | E166: =[3]الخزنية!E23 -> 0 | F166: =[3]الخزنية!F23 -> 0 | G166: =IF(AND(Table1[[#This Row],[مـديـن]]>0,Table1[[#This Row],[الحاله أ]]=0),"نقداً",Table1[[#This Row],[الحاله أ]]) -> 0 | H166: =Sheet1!$B$7 -> صالح
A167: =[3]الخزنية!A24 -> 0 | B167: =[3]الخزنية!B24 -> 0 | C167: =[3]الخزنية!C24 -> 0 | D167: =[3]الخزنية!D24 -> 00:00:00 | E167: =[3]الخزنية!E24 -> 0 | F167: =[3]الخزنية!F24 -> 0 | G167: =IF(AND(Table1[[#This Row],[مـديـن]]>0,Table1[[#This Row],[الحاله أ]]=0),"نقداً",Table1[[#This Row],[الحاله أ]]) -> 0 | H167: =Sheet1!$B$7 -> صالح
A168: =[3]الخزنية!A25 -> 0 | B168: =[3]الخزنية!B25 -> 0 | C168: =[3]الخزنية!C25 -> 0 | D168: =[3]الخزنية!D25 -> 00:00:00 | E168: =[3]الخزنية!E25 -> 0 | F168: =[3]الخزنية!F25 -> 0 | G168: =IF(AND(Table1[[#This Row],[مـديـن]]>0,Table1[[#This Row],[الحاله أ]]=0),"نقداً",Table1[[#This Row],[الحاله أ]]) -> 0 | H168: =Sheet1!$B$7 -> صالح
A169: =[3]الخزنية!A26 -> 0 | B169: =[3]الخزنية!B26 -> 0 | C169: =[3]الخزنية!C26 -> 0 | D169: =[3]الخزنية!D26 -> 00:00:00 | E169: =[3]الخزنية!E26 -> 0 | F169: =[3]الخزنية!F26 -> 0 | G169: =IF(AND(Table1[[#This Row],[مـديـن]]>0,Table1[[#This Row],[الحاله أ]]=0),"نقداً",Table1[[#This Row],[الحاله أ]]) -> 0 | H169: =Sheet1!$B$7 -> صالح
A170: =[3]الخزنية!A27 -> 0 | B170: =[3]الخزنية!B27 -> 0 | C170: =[3]الخزنية!C27 -> 0 | D170: =[3]الخزنية!D27 -> 00:00:00 | E170: =[3]الخزنية!E27 -> 0 | F170: =[3]الخزنية!F27 -> 0 | G170: =IF(AND(Table1[[#This Row],[مـديـن]]>0,Table1[[#This Row],[الحاله أ]]=0),"نقداً",Table1[[#This Row],[الحاله أ]]) -> 0 | H170: =Sheet1!$B$7 -> صالح
A171: =[3]الخزنية!A28 -> 0 | B171: =[3]الخزنية!B28 -> 0 | C171: =[3]الخزنية!C28 -> 0 | D171: =[3]الخزنية!D28 -> 00:00:00 | E171: =[3]الخزنية!E28 -> 0 | F171: =[3]الخزنية!F28 -> 0 | G171: =IF(AND(Table1[[#This Row],[مـديـن]]>0,Table1[[#This Row],[الحاله أ]]=0),"نقداً",Table1[[#This Row],[الحاله أ]]) -> 0 | H171: =Sheet1!$B$7 -> صالح
A172: =[3]الخزنية!A29 -> 0 | B172: =[3]الخزنية!B29 -> 0 | C172: =[3]الخزنية!C29 -> 0 | D172: =[3]الخزنية!D29 -> 00:00:00 | E172: =[3]الخزنية!E29 -> 0 | F172: =[3]الخزنية!F29 -> 0 | G172: =IF(AND(Table1[[#This Row],[مـديـن]]>0,Table1[[#This Row],[الحاله أ]]=0),"نقداً",Table1[[#This Row],[الحاله أ]]) -> 0 | H172: =Sheet1!$B$7 -> صالح
A173: =[3]الخزنية!A30 -> 0 | B173: =[3]الخزنية!B30 -> 0 | C173: =[3]الخزنية!C30 -> 0 | D173: =[3]الخزنية!D30 -> 00:00:00 | E173: =[3]الخزنية!E30 -> 0 | F173: =[3]الخزنية!F30 -> 0 | G173: =IF(AND(Table1[[#This Row],[مـديـن]]>0,Table1[[#This Row],[الحاله أ]]=0),"نقداً",Table1[[#This Row],[الحاله أ]]) -> 0 | H173: =Sheet1!$B$7 -> صالح
A174: =[3]الخزنية!A31 -> 0 | B174: =[3]الخزنية!B31 -> 0 | C174: =[3]الخزنية!C31 -> 0 | D174: =[3]الخزنية!D31 -> 00:00:00 | E174: =[3]الخزنية!E31 -> 0 | F174: =[3]الخزنية!F31 -> 0 | G174: =IF(AND(Table1[[#This Row],[مـديـن]]>0,Table1[[#This Row],[الحاله أ]]=0),"نقداً",Table1[[#This Row],[الحاله أ]]) -> 0 | H174: =Sheet1!$B$7 -> صالح
A175: =[3]الخزنية!A32 -> 0 | B175: =[3]الخزنية!B32 -> 0 | C175: =[3]الخزنية!C32 -> 0 | D175: =[3]الخزنية!D32 -> 00:00:00 | E175: =[3]الخزنية!E32 -> 0 | F175: =[3]الخزنية!F32 -> 0 | G175: =IF(AND(Table1[[#This Row],[مـديـن]]>0,Table1[[#This Row],[الحاله أ]]=0),"نقداً",Table1[[#This Row],[الحاله أ]]) -> 0 | H175: =Sheet1!$B$7 -> صالح
A176: =[3]الخزنية!A33 -> 0 | B176: =[3]الخزنية!B33 -> 0 | C176: =[3]الخزنية!C33 -> 0 | D176: =[3]الخزنية!D33 -> 00:00:00 | E176: =[3]الخزنية!E33 -> 0 | F176: =[3]الخزنية!F33 -> 0 | G176: =IF(AND(Table1[[#This Row],[مـديـن]]>0,Table1[[#This Row],[الحاله أ]]=0),"نقداً",Table1[[#This Row],[الحاله أ]]) -> 0 | H176: =Sheet1!$B$7 -> صالح
A177: =[3]الخزنية!A34 -> 0 | B177: =[3]الخزنية!B34 -> 0 | C177: =[3]الخزنية!C34 -> 0 | D177: =[3]الخزنية!D34 -> 00:00:00 | E177: =[3]الخزنية!E34 -> 0 | F177: =[3]الخزنية!F34 -> 0 | G177: =IF(AND(Table1[[#This Row],[مـديـن]]>0,Table1[[#This Row],[الحاله أ]]=0),"نقداً",Table1[[#This Row],[الحاله أ]]) -> 0 | H177: =Sheet1!$B$7 -> صالح
A178: =[3]الخزنية!A35 -> 0 | B178: =[3]الخزنية!B35 -> 0 | C178: =[3]الخزنية!C35 -> 0 | D178: =[3]الخزنية!D35 -> 00:00:00 | E178: =[3]الخزنية!E35 -> 0 | F178: =[3]الخزنية!F35 -> 0 | G178: =IF(AND(Table1[[#This Row],[مـديـن]]>0,Table1[[#This Row],[الحاله أ]]=0),"نقداً",Table1[[#This Row],[الحاله أ]]) -> 0 | H178: =Sheet1!$B$7 -> صالح
A179: =[3]الخزنية!A36 -> 0 | B179: =[3]الخزنية!B36 -> 0 | C179: =[3]الخزنية!C36 -> 0 | D179: =[3]الخزنية!D36 -> 00:00:00 | E179: =[3]الخزنية!E36 -> 0 | F179: =[3]الخزنية!F36 -> 0 | G179: =IF(AND(Table1[[#This Row],[مـديـن]]>0,Table1[[#This Row],[الحاله أ]]=0),"نقداً",Table1[[#This Row],[الحاله أ]]) -> 0 | H179: =Sheet1!$B$7 -> صالح
A180: =[3]الخزنية!A37 -> 0 | B180: =[3]الخزنية!B37 -> 0 | C180: =[3]الخزنية!C37 -> 0 | D180: =[3]الخزنية!D37 -> 00:00:00 | E180: =[3]الخزنية!E37 -> 0 | F180: =[3]الخزنية!F37 -> 0 | G180: =IF(AND(Table1[[#This Row],[مـديـن]]>0,Table1[[#This Row],[الحاله أ]]=0),"نقداً",Table1[[#This Row],[الحاله أ]]) -> 0 | H180: =Sheet1!$B$7 -> صالح
A181: =[3]الخزنية!A38 -> 0 | B181: =[3]الخزنية!B38 -> 0 | C181: =[3]الخزنية!C38 -> 0 | D181: =[3]الخزنية!D38 -> 00:00:00 | E181: =[3]الخزنية!E38 -> 0 | F181: =[3]الخزنية!F38 -> 0 | G181: =IF(AND(Table1[[#This Row],[مـديـن]]>0,Table1[[#This Row],[الحاله أ]]=0),"نقداً",Table1[[#This Row],[الحاله أ]]) -> 0 | H181: =Sheet1!$B$7 -> صالح
A182: =[3]الخزنية!A39 -> 0 | B182: =[3]الخزنية!B39 -> 0 | C182: =[3]الخزنية!C39 -> 0 | D182: =[3]الخزنية!D39 -> 00:00:00 | E182: =[3]الخزنية!E39 -> 0 | F182: =[3]الخزنية!F39 -> 0 | G182: =IF(AND(Table1[[#This Row],[مـديـن]]>0,Table1[[#This Row],[الحاله أ]]=0),"نقداً",Table1[[#This Row],[الحاله أ]]) -> 0 | H182: =Sheet1!$B$7 -> صالح
A183: =[3]الخزنية!A40 -> 0 | B183: =[3]الخزنية!B40 -> 0 | C183: =[3]الخزنية!C40 -> 0 | D183: =[3]الخزنية!D40 -> 00:00:00 | E183: =[3]الخزنية!E40 -> 0 | F183: =[3]الخزنية!F40 -> 0 | G183: =IF(AND(Table1[[#This Row],[مـديـن]]>0,Table1[[#This Row],[الحاله أ]]=0),"نقداً",Table1[[#This Row],[الحاله أ]]) -> 0 | H183: =Sheet1!$B$7 -> صالح
A184: =[3]الخزنية2!A6 -> 0 | B184: =[3]الخزنية2!B6 -> 0 | C184: =[3]الخزنية2!C6 -> 0 | D184: =[3]الخزنية2!D6 -> 09:01:02 | E184: =[3]الخزنية2!E6 -> 0 | F184: =[3]الخزنية2!F6 -> 0 | G184: =IF(AND(Table1[[#This Row],[مـديـن]]>0,Table1[[#This Row],[الحاله أ]]=0),"نقداً",Table1[[#This Row],[الحاله أ]]) -> 0 | H184: =Sheet1!$B$7 -> صالح
A185: =[3]الخزنية2!A7 -> 0 | B185: =[3]الخزنية2!B7 -> 0 | C185: =[3]الخزنية2!C7 -> 0 | D185: =[3]الخزنية2!D7 -> 00:00:00 | E185: =[3]الخزنية2!E7 -> 0 | F185: =[3]الخزنية2!F7 -> 0 | G185: =IF(AND(Table1[[#This Row],[مـديـن]]>0,Table1[[#This Row],[الحاله أ]]=0),"نقداً",Table1[[#This Row],[الحاله أ]]) -> 0 | H185: =Sheet1!$B$7 -> صالح
A186: =[3]الخزنية2!A8 -> 0 | B186: =[3]الخزنية2!B8 -> 0 | C186: =[3]الخزنية2!C8 -> 0 | D186: =[3]الخزنية2!D8 -> 00:00:00 | E186: =[3]الخزنية2!E8 -> 0 | F186: =[3]الخزنية2!F8 -> 0 | G186: =IF(AND(Table1[[#This Row],[مـديـن]]>0,Table1[[#This Row],[الحاله أ]]=0),"نقداً",Table1[[#This Row],[الحاله أ]]) -> 0 | H186: =Sheet1!$B$7 -> صالح
A187: =[3]الخزنية2!A9 -> 0 | B187: =[3]الخزنية2!B9 -> 0 | C187: =[3]الخزنية2!C9 -> 0 | D187: =[3]الخزنية2!D9 -> 00:00:00 | E187: =[3]الخزنية2!E9 -> 0 | F187: =[3]الخزنية2!F9 -> 0 | G187: =IF(AND(Table1[[#This Row],[مـديـن]]>0,Table1[[#This Row],[الحاله أ]]=0),"نقداً",Table1[[#This Row],[الحاله أ]]) -> 0 | H187: =Sheet1!$B$7 -> صالح
A188: =[3]الخزنية2!A10 -> 0 | B188: =[3]الخزنية2!B10 -> 0 | C188: =[3]الخزنية2!C10 -> 0 | D188: =[3]الخزنية2!D10 -> 00:00:00 | E188: =[3]الخزنية2!E10 -> 0 | F188: =[3]الخزنية2!F10 -> 0 | G188: =IF(AND(Table1[[#This Row],[مـديـن]]>0,Table1[[#This Row],[الحاله أ]]=0),"نقداً",Table1[[#This Row],[الحاله أ]]) -> 0 | H188: =Sheet1!$B$7 -> صالح
A189: =[3]الخزنية2!A11 -> 0 | B189: =[3]الخزنية2!B11 -> 0 | C189: =[3]الخزنية2!C11 -> 0 | D189: =[3]الخزنية2!D11 -> 00:00:00 | E189: =[3]الخزنية2!E11 -> 0 | F189: =[3]الخزنية2!F11 -> 0 | G189: =IF(AND(Table1[[#This Row],[مـديـن]]>0,Table1[[#This Row],[الحاله أ]]=0),"نقداً",Table1[[#This Row],[الحاله أ]]) -> 0 | H189: =Sheet1!$B$7 -> صالح
A190: =[3]الخزنية2!A12 -> 0 | B190: =[3]الخزنية2!B12 -> 0 | C190: =[3]الخزنية2!C12 -> 0 | D190: =[3]الخزنية2!D12 -> 00:00:00 | E190: =[3]الخزنية2!E12 -> 0 | F190: =[3]الخزنية2!F12 -> 0 | G190: =IF(AND(Table1[[#This Row],[مـديـن]]>0,Table1[[#This Row],[الحاله أ]]=0),"نقداً",Table1[[#This Row],[الحاله أ]]) -> 0 | H190: =Sheet1!$B$7 -> صالح
A191: =[3]الخزنية2!A13 -> 0 | B191: =[3]الخزنية2!B13 -> 0 | C191: =[3]الخزنية2!C13 -> 0 | D191: =[3]الخزنية2!D13 -> 00:00:00 | E191: =[3]الخزنية2!E13 -> 0 | F191: =[3]الخزنية2!F13 -> 0 | G191: =IF(AND(Table1[[#This Row],[مـديـن]]>0,Table1[[#This Row],[الحاله أ]]=0),"نقداً",Table1[[#This Row],[الحاله أ]]) -> 0 | H191: =Sheet1!$B$7 -> صالح
A192: =[3]الخزنية2!A14 -> 0 | B192: =[3]الخزنية2!B14 -> 0 | C192: =[3]الخزنية2!C14 -> 0 | D192: =[3]الخزنية2!D14 -> 00:00:00 | E192: =[3]الخزنية2!E14 -> 0 | F192: =[3]الخزنية2!F14 -> 0 | G192: =IF(AND(Table1[[#This Row],[مـديـن]]>0,Table1[[#This Row],[الحاله أ]]=0),"نقداً",Table1[[#This Row],[الحاله أ]]) -> 0 | H192: =Sheet1!$B$7 -> صالح
A193: =[3]الخزنية2!A15 -> 0 | B193: =[3]الخزنية2!B15 -> 0 | C193: =[3]الخزنية2!C15 -> 0 | D193: =[3]الخزنية2!D15 -> 00:00:00 | E193: =[3]الخزنية2!E15 -> 0 | F193: =[3]الخزنية2!F15 -> 0 | G193: =IF(AND(Table1[[#This Row],[مـديـن]]>0,Table1[[#This Row],[الحاله أ]]=0),"نقداً",Table1[[#This Row],[الحاله أ]]) -> 0 | H193: =Sheet1!$B$7 -> صالح
A194: =[3]الخزنية2!A16 -> 0 | B194: =[3]الخزنية2!B16 -> 0 | C194: =[3]الخزنية2!C16 -> 0 | D194: =[3]الخزنية2!D16 -> 00:00:00 | E194: =[3]الخزنية2!E16 -> 0 | F194: =[3]الخزنية2!F16 -> 0 | G194: =IF(AND(Table1[[#This Row],[مـديـن]]>0,Table1[[#This Row],[الحاله أ]]=0),"نقداً",Table1[[#This Row],[الحاله أ]]) -> 0 | H194: =Sheet1!$B$7 -> صالح
A195: =[3]الخزنية2!A17 -> 0 | B195: =[3]الخزنية2!B17 -> 0 | C195: =[3]الخزنية2!C17 -> 0 | D195: =[3]الخزنية2!D17 -> 00:00:00 | E195: =[3]الخزنية2!E17 -> 0 | F195: =[3]الخزنية2!F17 -> 0 | G195: =IF(AND(Table1[[#This Row],[مـديـن]]>0,Table1[[#This Row],[الحاله أ]]=0),"نقداً",Table1[[#This Row],[الحاله أ]]) -> 0 | H195: =Sheet1!$B$7 -> صالح
A196: =[3]الخزنية2!A18 -> 0 | B196: =[3]الخزنية2!B18 -> 0 | C196: =[3]الخزنية2!C18 -> 0 | D196: =[3]الخزنية2!D18 -> 00:00:00 | E196: =[3]الخزنية2!E18 -> 0 | F196: =[3]الخزنية2!F18 -> 0 | G196: =IF(AND(Table1[[#This Row],[مـديـن]]>0,Table1[[#This Row],[الحاله أ]]=0),"نقداً",Table1[[#This Row],[الحاله أ]]) -> 0 | H196: =Sheet1!$B$7 -> صالح
A197: =[3]الخزنية2!A19 -> 0 | B197: =[3]الخزنية2!B19 -> 0 | C197: =[3]الخزنية2!C19 -> 0 | D197: =[3]الخزنية2!D19 -> 00:00:00 | E197: =[3]الخزنية2!E19 -> 0 | F197: =[3]الخزنية2!F19 -> 0 | G197: =IF(AND(Table1[[#This Row],[مـديـن]]>0,Table1[[#This Row],[الحاله أ]]=0),"نقداً",Table1[[#This Row],[الحاله أ]]) -> 0 | H197: =Sheet1!$B$7 -> صالح
A198: =[3]الخزنية2!A20 -> 0 | B198: =[3]الخزنية2!B20 -> 0 | C198: =[3]الخزنية2!C20 -> 0 | D198: =[3]الخزنية2!D20 -> 00:00:00 | E198: =[3]الخزنية2!E20 -> 0 | F198: =[3]الخزنية2!F20 -> 0 | G198: =IF(AND(Table1[[#This Row],[مـديـن]]>0,Table1[[#This Row],[الحاله أ]]=0),"نقداً",Table1[[#This Row],[الحاله أ]]) -> 0 | H198: =Sheet1!$B$7 -> صالح
A199: =[3]الخزنية2!A21 -> 0 | B199: =[3]الخزنية2!B21 -> 0 | C199: =[3]الخزنية2!C21 -> 0 | D199: =[3]الخزنية2!D21 -> 00:00:00 | E199: =[3]الخزنية2!E21 -> 0 | F199: =[3]الخزنية2!F21 -> 0 | G199: =IF(AND(Table1[[#This Row],[مـديـن]]>0,Table1[[#This Row],[الحاله أ]]=0),"نقداً",Table1[[#This Row],[الحاله أ]]) -> 0 | H199: =Sheet1!$B$7 -> صالح
A200: =[3]الخزنية2!A22 -> 0 | B200: =[3]الخزنية2!B22 -> 0 | C200: =[3]الخزنية2!C22 -> 0 | D200: =[3]الخزنية2!D22 -> 00:00:00 | E200: =[3]الخزنية2!E22 -> 0 | F200: =[3]الخزنية2!F22 -> 0 | G200: =IF(AND(Table1[[#This Row],[مـديـن]]>0,Table1[[#This Row],[الحاله أ]]=0),"نقداً",Table1[[#This Row],[الحاله أ]]) -> 0 | H200: =Sheet1!$B$7 -> صالح
A201: =[3]الخزنية2!A23 -> 0 | B201: =[3]الخزنية2!B23 -> 0 | C201: =[3]الخزنية2!C23 -> 0 | D201: =[3]الخزنية2!D23 -> 00:00:00 | E201: =[3]الخزنية2!E23 -> 0 | F201: =[3]الخزنية2!F23 -> 0 | G201: =IF(AND(Table1[[#This Row],[مـديـن]]>0,Table1[[#This Row],[الحاله أ]]=0),"نقداً",Table1[[#This Row],[الحاله أ]]) -> 0 | H201: =Sheet1!$B$7 -> صالح
A202: =[3]الخزنية2!A24 -> 0 | B202: =[3]الخزنية2!B24 -> 0 | C202: =[3]الخزنية2!C24 -> 0 | D202: =[3]الخزنية2!D24 -> 00:00:00 | E202: =[3]الخزنية2!E24 -> 0 | F202: =[3]الخزنية2!F24 -> 0 | G202: =IF(AND(Table1[[#This Row],[مـديـن]]>0,Table1[[#This Row],[الحاله أ]]=0),"نقداً",Table1[[#This Row],[الحاله أ]]) -> 0 | H202: =Sheet1!$B$7 -> صالح
... 17 more rows

Sheet Sheet5
A3: مـديـن | B3: دائـن | C3: الــبـيـان | D3: الــوقــت | E3: اسـم الـسـائـق | F3: الحاله | G3: البائع
A4: نـقداً
